Workbook

Sheet IQData
A1: ser | B1: rawData | C1: IQ | F1: n=n | G1: n | H1: se | I1: ob_se | J1: ob_mean_samples
A2: 1 | B2: 118.0027547 | C2: =ROUND(B2,0) -> 118 | D2: stdev | E2: =STDEV(C2:C100001) -> 15.001947 | F2: n=2 | G2: 2 | H2: =E2/(SQRT(2)) -> 10.60797845 | I2: ='2_Means'!C6 -> 11.04887672 | J2: ='2_Means'!C2 -> 100.41
A3: 2 | B3: 106.6143404 | C3: =ROUND(B3,0) -> 107 | D3: mean | E3: =AVERAGE(C2:C100001) -> 100.02858 | F3: n=4 | G3: 4 | H3: =$E$2/(SQRT(G3)) -> 7.5009735 | I3: ='4_Means'!C6 -> 8.529083858 | J3: ='4_Means'!C2 -> 99.7675
A4: 3 | B4: 95.23934643 | C4: 95 | F4: n=16 | G4: 16 | H4: 3.75048675 | I4: ='16_Means'!C6 -> 3.543010607 | J4: ='16_Means'!C2 -> 100.039375
A5: 4 | B5: 93.2767297 | C5: 93 | F5: n=25 | G5: 25 | H5: 3.0003894 | I5: ='25_Means'!C6 -> 3.732932857 | J5: ='25_Means'!$C$2 -> 100.3996
A6: 5 | B6: 88.28809656 | C6: 88 | F6: n=100 | G6: 100 | H6: 1.5001947 | I6: ='100_Means'!C6 -> 1.498102841 | J6: ='100_Means'!$C$2 -> 100.221
A7: 6 | B7: 78.12101852 | C7: 78 | F7: n=400 | G7: 400 | H7: 0.75009735 | I7: ='400_Means'!C6 -> 0.6839563143 | J7: ='400_Means'!$C$2 -> 99.95915
A8: 7 | B8: 85.62793443 | C8: 86 | F8: n=900 | G8: 900 | H8: 0.5000649 | I8: ='900_Means'!C6 -> 0.5179179784 | J8: ='900_Means'!$C$2 -> 100.0531111
A9: 8 | B9: 97.77049555 | C9: 98 | F9: n=1600 | G9: 1600 | H9: 0.375048675 | I9: ='1600_Means'!C6 -> 0.4006074883 | J9: ='1600_Means'!$C$2 -> 100.0511875
A10: 9 | B10: 114.9265537 | C10: 115
A11: 10 | B11: 80.09019656 | C11: 80
A12: 11 | B12: 98.15904997 | C12: 98 | E12: 계급 | F12: 빈도수
A13: 12 | B13: 83.84409893 | C13: 84 | E13: 37 | F13: 3
A14: 13 | B14: 86.04402922 | C14: 86 | E14: 37.39556962 | F14: 0
A15: 14 | B15: 71.77362043 | C15: 72 | E15: 37.79113924 | F15: 0
A16: 15 | B16: 120.3591447 | C16: 120 | E16: 38.18670886 | F16: 0
A17: 16 | B17: 88.50021786 | C17: 89 | E17: 38.58227848 | F17: 0
A18: 17 | B18: 121.8132868 | C18: 122 | E18: 38.9778481 | F18: 0
A19: 18 | B19: 106.9343413 | C19: 107 | E19: 39.37341772 | F19: 0
A20: 19 | B20: 105.0202325 | C20: 105 | E20: 39.76898734 | F20: 0
A21: 20 | B21: 96.24425096 | C21: 96 | E21: 40.16455696 | F21: 0
A22: 21 | B22: 104.6458838 | C22: 105 | E22: 40.56012658 | F22: 0
A23: 22 | B23: 85.64155589 | C23: 86 | E23: 40.9556962 | F23: 0
A24: 23 | B24: 111.2687088 | C24: 111 | E24: 41.35126582 | F24: 2
A25: 24 | B25: 92.613789 | C25: 93 | E25: 41.74683544 | F25: 0
A26: 25 | B26: 114.177465 | C26: 114 | E26: 42.14240506 | F26: 1
A27: 26 | B27: 100.4160284 | C27: 100 | E27: 42.53797468 | F27: 0
A28: 27 | B28: 76.95955316 | C28: 77 | E28: 42.9335443 | F28: 0
A29: 28 | B29: 84.24445212 | C29: 84 | E29: 43.32911392 | F29: 0
A30: 29 | B30: 103.3175175 | C30: 103 | E30: 43.72468354 | F30: 0
A31: 30 | B31: 110.1263272 | C31: 110 | E31: 44.12025316 | F31: 6
A32: 31 | B32: 94.36193353 | C32: 94 | E32: 44.51582278 | F32: 0
A33: 32 | B33: 97.11549176 | C33: 97 | E33: 44.91139241 | F33: 0
A34: 33 | B34: 92.87902572 | C34: 93 | E34: 45.30696203 | F34: 4
A35: 34 | B35: 83.16542543 | C35: 83 | E35: 45.70253165 | F35: 0
A36: 35 | B36: 104.6820644 | C36: 105 | E36: 46.09810127 | F36: 6
A37: 36 | B37: 115.9293806 | C37: 116 | E37: 46.49367089 | F37: 0
A38: 37 | B38: 87.20955786 | C38: 87 | E38: 46.88924051 | F38: 0
A39: 38 | B39: 84.00450068 | C39: 84 | E39: 47.28481013 | F39: 2
A40: 39 | B40: 87.81306509 | C40: 88 | E40: 47.68037975 | F40: 0
A41: 40 | B41: 96.12345976 | C41: 96 | E41: 48.07594937 | F41: 6
A42: 41 | B42: 93.67225101 | C42: 94 | E42: 48.47151899 | F42: 0
A43: 42 | B43: 79.55120476 | C43: 80 | E43: 48.86708861 | F43: 0
A44: 43 | B44: 88.3691881 | C44: 88 | E44: 49.26265823 | F44: 8
A45: 44 | B45: 99.89365942 | C45: 100 | E45: 49.65822785 | F45: 0
A46: 45 | B46: 116.0584985 | C46: 116 | E46: 50.05379747 | F46: 7
A47: 46 | B47: 111.6853465 | C47: 112 | E47: 50.44936709 | F47: 0
A48: 47 | B48: 89.55287694 | C48: 90 | E48: 50.84493671 | F48: 0
A49: 48 | B49: 96.69973053 | C49: 97 | E49: 51.24050633 | F49: 7
A50: 49 | B50: 99.51397484 | C50: 100 | E50: 51.63607595 | F50: 0
A51: 50 | B51: 86.08598604 | C51: 86 | E51: 52.03164557 | F51: 19
A52: 51 | B52: 89.60392633 | C52: 90 | E52: 52.42721519 | F52: 0
A53: 52 | B53: 111.3149687 | C53: 111 | E53: 52.82278481 | F53: 0
A54: 53 | B54: 87.34912788 | C54: 87 | E54: 53.21835443 | F54: 18
A55: 54 | B55: 98.43792139 | C55: 98 | E55: 53.61392405 | F55: 0
A56: 55 | B56: 76.26609729 | C56: 76 | E56: 54.00949367 | F56: 21
A57: 56 | B57: 94.65247165 | C57: 95 | E57: 54.40506329 | F57: 0
A58: 57 | B58: 109.529735 | C58: 110 | E58: 54.80063291 | F58: 0
A59: 58 | B59: 108.4469365 | C59: 108 | E59: 55.19620253 | F59: 27
A60: 59 | B60: 120.650769 | C60: 121 | E60: 55.59177215 | F60: 0
A61: 60 | B61: 80.11290227 | C61: 80 | E61: 55.98734177 | F61: 0
A62: 61 | B62: 133.7741764 | C62: 134 | E62: 56.38291139 | F62: 45
A63: 62 | B63: 103.0119026 | C63: 103 | E63: 56.77848101 | F63: 0
A64: 63 | B64: 104.4036243 | C64: 104 | E64: 57.17405063 | F64: 37
A65: 64 | B65: 129.506597 | C65: 130 | E65: 57.56962025 | F65: 0
A66: 65 | B66: 81.05254313 | C66: 81 | E66: 57.96518987 | F66: 0
A67: 66 | B67: 57.44825908 | C67: =ROUND(B67,0) -> 57 | E67: 58.36075949 | F67: 58
A68: 67 | B68: 94.74801056 | C68: 95 | E68: 58.75632911 | F68: 0
A69: 68 | B69: 103.2842031 | C69: 103 | E69: 59.15189873 | F69: 63
A70: 69 | B70: 77.84347817 | C70: 78 | E70: 59.54746835 | F70: 0
A71: 70 | B71: 119.1203495 | C71: 119 | E71: 59.94303797 | F71: 0
A72: 71 | B72: 108.673693 | C72: 109 | E72: 60.33860759 | F72: 70
A73: 72 | B73: 102.9283466 | C73: 103 | E73: 60.73417722 | F73: 0
A74: 73 | B74: 113.9358437 | C74: 114 | E74: 61.12974684 | F74: 97
A75: 74 | B75: 92.461718 | C75: 92 | E75: 61.52531646 | F75: 0
A76: 75 | B76: 94.26559842 | C76: 94 | E76: 61.92088608 | F76: 0
A77: 76 | B77: 99.16507855 | C77: 99 | E77: 62.3164557 | F77: 96
A78: 77 | B78: 105.691777 | C78: 106 | E78: 62.71202532 | F78: 0
A79: 78 | B79: 88.80203457 | C79: 89 | E79: 63.10759494 | F79: 117
A80: 79 | B80: 108.9753711 | C80: 109 | E80: 63.50316456 | F80: 0
A81: 80 | B81: 91.0170348 | C81: 91 | E81: 63.89873418 | F81: 0
A82: 81 | B82: 107.812333 | C82: 108 | E82: 64.2943038 | F82: 139
A83: 82 | B83: 105.572383 | C83: 106 | E83: 64.68987342 | F83: 0
A84: 83 | B84: 82.99836097 | C84: 83 | E84: 65.08544304 | F84: 193
A85: 84 | B85: 114.343012 | C85: 114 | E85: 65.48101266 | F85: 0
A86: 85 | B86: 87.79008337 | C86: 88 | E86: 65.87658228 | F86: 0
A87: 86 | B87: 102.4664479 | C87: 102 | E87: 66.2721519 | F87: 172
A88: 87 | B88: 104.5731045 | C88: 105 | E88: 66.66772152 | F88: 0
A89: 88 | B89: 109.9031478 | C89: 110 | E89: 67.06329114 | F89: 249
A90: 89 | B90: 107.5231423 | C90: 108 | E90: 67.45886076 | F90: 0
A91: 90 | B91: 120.4874947 | C91: 120 | E91: 67.85443038 | F91: 0
A92: 91 | B92: 97.84803274 | C92: 98 | E92: 68.25 | F92: 267
A93: 92 | B93: 80.82955614 | C93: 81 | E93: 68.64556962 | F93: 0
A94: 93 | B94: 107.0035589 | C94: 107 | E94: 69.04113924 | F94: 301
A95: 94 | B95: 121.6583234 | C95: 122 | E95: 69.43670886 | F95: 0
A96: 95 | B96: 69.61237687 | C96: 70 | E96: 69.83227848 | F96: 0
A97: 96 | B97: 125.2688125 | C97: 125 | E97: 70.2278481 | F97: 379
A98: 97 | B98: 102.5269227 | C98: 103 | E98: 70.62341772 | F98: 0
A99: 98 | B99: 81.46017939 | C99: 81 | E99: 71.01898734 | F99: 420
A100: 99 | B100: 124.311144 | C100: 124 | E100: 71.41455696 | F100: 0
A101: 100 | B101: 77.36440896 | C101: 77 | E101: 71.81012658 | F101: 0
A102: 101 | B102: 103.860497 | C102: 104 | E102: 72.2056962 | F102: 477
A103: 102 | B103: 116.1124236 | C103: 116 | E103: 72.60126582 | F103: 0
A104: 103 | B104: 121.8363058 | C104: 122 | E104: 72.99683544 | F104: 0
A105: 104 | B105: 116.3950053 | C105: 116 | E105: 73.39240506 | F105: 508
A106: 105 | B106: 116.3581016 | C106: 116 | E106: 73.78797468 | F106: 0
A107: 106 | B107: 81.44003071 | C107: 81 | E107: 74.1835443 | F107: 614
A108: 107 | B108: 85.38232665 | C108: 85 | E108: 74.57911392 | F108: 0
A109: 108 | B109: 109.7310642 | C109: 110 | E109: 74.97468354 | F109: 0
A110: 109 | B110: 118.4505771 | C110: 118 | E110: 75.37025316 | F110: 664
A111: 110 | B111: 92.56435417 | C111: 93 | E111: 75.76582278 | F111: 0
A112: 111 | B112: 96.8995513 | C112: 97 | E112: 76.16139241 | F112: 780
A113: 112 | B113: 96.31130288 | C113: 96 | E113: 76.55696203 | F113: 0
A114: 113 | B114: 91.82736396 | C114: 92 | E114: 76.95253165 | F114: 0
A115: 114 | B115: 102.8673647 | C115: 103 | E115: 77.34810127 | F115: 765
A116: 115 | B116: 113.3627151 | C116: 113 | E116: 77.74367089 | F116: 0
A117: 116 | B117: 108.9996857 | C117: 109 | E117: 78.13924051 | F117: 902
A118: 117 | B118: 101.5355153 | C118: 102 | E118: 78.53481013 | F118: 0
A119: 118 | B119: 88.30408341 | C119: 88 | E119: 78.93037975 | F119: 0
A120: 119 | B120: 109.483712 | C120: 109 | E120: 79.32594937 | F120: 1016
A121: 120 | B121: 99.23319706 | C121: 99 | E121: 79.72151899 | F121: 0
A122: 121 | B122: 96.44973325 | C122: 96 | E122: 80.11708861 | F122: 1098
A123: 122 | B123: 102.4265291 | C123: 102 | E123: 80.51265823 | F123: 0
A124: 123 | B124: 76.8163254 | C124: 77 | E124: 80.90822785 | F124: 0
A125: 124 | B125: 84.74105393 | C125: 85 | E125: 81.30379747 | F125: 1214
A126: 125 | B126: 90.51594313 | C126: 91 | E126: 81.69936709 | F126: 0
A127: 126 | B127: 103.7456559 | C127: 104 | E127: 82.09493671 | F127: 1287
A128: 127 | B128: 109.1451066 | C128: 109 | E128: 82.49050633 | F128: 0
A129: 128 | B129: 114.1121825 | C129: 114 | E129: 82.88607595 | F129: 0
A130: 129 | B130: 93.27588773 | C130: 93 | E130: 83.28164557 | F130: 1390
A131: 130 | B131: 84.47329891 | C131: =ROUND(B131,0) -> 84 | E131: 83.67721519 | F131: 0
A132: 131 | B132: 86.82414023 | C132: 87 | E132: 84.07278481 | F132: 1522
A133: 132 | B133: 98.57666611 | C133: 99 | E133: 84.46835443 | F133: 0
A134: 133 | B134: 102.4365059 | C134: 102 | E134: 84.86392405 | F134: 0
A135: 134 | B135: 76.81707047 | C135: 77 | E135: 85.25949367 | F135: 1579
A136: 135 | B136: 130.3166052 | C136: 130 | E136: 85.65506329 | F136: 0
A137: 136 | B137: 83.28517927 | C137: 83 | E137: 86.05063291 | F137: 1730
A138: 137 | B138: 90.03883959 | C138: 90 | E138: 86.44620253 | F138: 0
A139: 138 | B139: 96.01781924 | C139: 96 | E139: 86.84177215 | F139: 0
A140: 139 | B140: 100.6343135 | C140: 101 | E140: 87.23734177 | F140: 1854
A141: 140 | B141: 105.2522488 | C141: 105 | E141: 87.63291139 | F141: 0
A142: 141 | B142: 107.738605 | C142: 108 | E142: 88.02848101 | F142: 1884
A143: 142 | B143: 98.65384375 | C143: 99 | E143: 88.42405063 | F143: 0
A144: 143 | B144: 96.45931102 | C144: 96 | E144: 88.81962025 | F144: 0
A145: 144 | B145: 97.28771538 | C145: 97 | E145: 89.21518987 | F145: 2034
A146: 145 | B146: 103.1391169 | C146: 103 | E146: 89.61075949 | F146: 0
A147: 146 | B147: 74.99721672 | C147: 75 | E147: 90.00632911 | F147: 2208
A148: 147 | B148: 106.1669823 | C148: 106 | E148: 90.40189873 | F148: 0
A149: 148 | B149: 121.6176801 | C149: 122 | E149: 90.79746835 | F149: 0
A150: 149 | B150: 81.818431 | C150: 82 | E150: 91.19303797 | F150: 2220
A151: 150 | B151: 119.7411562 | C151: 120 | E151: 91.58860759 | F151: 0
A152: 151 | B152: 82.26509347 | C152: 82 | E152: 91.98417722 | F152: 0
A153: 152 | B153: 85.92094766 | C153: 86 | E153: 92.37974684 | F153: 2308
A154: 153 | B154: 126.6385245 | C154: 127 | E154: 92.77531646 | F154: 0
A155: 154 | B155: 87.25423553 | C155: 87 | E155: 93.17088608 | F155: 2369
A156: 155 | B156: 112.9168203 | C156: 113 | E156: 93.5664557 | F156: 0
A157: 156 | B157: 95.17800661 | C157: 95 | E157: 93.96202532 | F157: 0
A158: 157 | B158: 124.4415616 | C158: 124 | E158: 94.35759494 | F158: 2452
A159: 158 | B159: 103.8475019 | C159: 104 | E159: 94.75316456 | F159: 0
A160: 159 | B160: 83.74865248 | C160: 84 | E160: 95.14873418 | F160: 2501
A161: 160 | B161: 92.59212837 | C161: 93 | E161: 95.5443038 | F161: 0
A162: 161 | B162: 97.36633027 | C162: 97 | E162: 95.93987342 | F162: 0
A163: 162 | B163: 60.85916178 | C163: 61 | E163: 96.33544304 | F163: 2522
A164: 163 | B164: 121.6897851 | C164: 122 | E164: 96.73101266 | F164: 0
A165: 164 | B165: 103.9997135 | C165: 104 | E165: 97.12658228 | F165: 2554
A166: 165 | B166: 118.2730932 | C166: 118 | E166: 97.5221519 | F166: 0
A167: 166 | B167: 113.5268391 | C167: 114 | E167: 97.91772152 | F167: 0
A168: 167 | B168: 106.6832653 | C168: 107 | E168: 98.31329114 | F168: 2584
A169: 168 | B169: 114.0754264 | C169: 114 | E169: 98.70886076 | F169: 0
A170: 169 | B170: 115.8653041 | C170: 116 | E170: 99.10443038 | F170: 2721
A171: 170 | B171: 93.96953929 | C171: 94 | E171: 99.5 | F171: 0
A172: 171 | B172: 113.1204312 | C172: 113 | E172: 99.89556962 | F172: 0
A173: 172 | B173: 107.5321348 | C173: 108 | E173: 100.2911392 | F173: 2716
A174: 173 | B174: 93.09409104 | C174: 93 | E174: 100.6867089 | F174: 0
A175: 174 | B175: 116.4823102 | C175: 116 | E175: 101.0822785 | F175: 2612
A176: 175 | B176: 94.70906796 | C176: 95 | E176: 101.4778481 | F176: 0
A177: 176 | B177: 107.9007744 | C177: 108 | E177: 101.8734177 | F177: 0
A178: 177 | B178: 106.3225493 | C178: 106 | E178: 102.2689873 | F178: 2664
A179: 178 | B179: 115.267345 | C179: 115 | E179: 102.664557 | F179: 0
A180: 179 | B180: 95.37710811 | C180: 95 | E180: 103.0601266 | F180: 2593
A181: 180 | B181: 98.28371303 | C181: 98 | E181: 103.4556962 | F181: 0
A182: 181 | B182: 61.15263819 | C182: 61 | E182: 103.8512658 | F182: 0
A183: 182 | B183: 99.1515765 | C183: 99 | E183: 104.2468354 | F183: 2549
A184: 183 | B184: 99.64977444 | C184: 100 | E184: 104.6424051 | F184: 0
A185: 184 | B185: 95.67455899 | C185: 96 | E185: 105.0379747 | F185: 2523
A186: 185 | B186: 124.6076223 | C186: 125 | E186: 105.4335443 | F186: 0
A187: 186 | B187: 101.2471433 | C187: 101 | E187: 105.8291139 | F187: 0
A188: 187 | B188: 89.44078434 | C188: 89 | E188: 106.2246835 | F188: 2420
A189: 188 | B189: 108.2164531 | C189: 108 | E189: 106.6202532 | F189: 0
A190: 189 | B190: 111.6312674 | C190: 112 | E190: 107.0158228 | F190: 2403
A191: 190 | B191: 127.9132433 | C191: 128 | E191: 107.4113924 | F191: 0
A192: 191 | B192: 94.10039069 | C192: 94 | E192: 107.806962 | F192: 0
A193: 192 | B193: 105.4608228 | C193: 105 | E193: 108.2025316 | F193: 2304
A194: 193 | B194: 68.04468355 | C194: 68 | E194: 108.5981013 | F194: 0
A195: 194 | B195: 90.69821399 | C195: =ROUND(B195,0) -> 91 | E195: 108.9936709 | F195: 0
A196: 195 | B196: 101.9986896 | C196: 102 | E196: 109.3892405 | F196: 2243
A197: 196 | B197: 111.1616171 | C197: 111 | E197: 109.7848101 | F197: 0
A198: 197 | B198: 113.6802122 | C198: 114 | E198: 110.1803797 | F198: 2073
A199: 198 | B199: 101.0687769 | C199: 101 | E199: 110.5759494 | F199: 0
A200: 199 | B200: 69.60794169 | C200: 70 | E200: 110.971519 | F200: 0
... 4300 more rows

Sheet 2_Sample
A1: ser | B1: Iqscore | C1: IQ
A2: 23275 | B2: 100.0770572 | C2: =ROUND(B2,0) -> 100
A3: 88567 | B3: 109.0378837 | C3: 109

Sheet 2_Means
A1: Mean | B1: Means
A2: =AVERAGE('2_Sample'!C:C) -> 104.5 | B2: 126 | C2: =AVERAGE(B:B) -> 100.41 | D2: mean
B3: 114.5 | C3: =MAX(B:B) -> 126 | D3: max
B4: 103.5 | C4: =MIN(B:B) -> 74.5 | D4: min
B5: 125.5 | C5: =C3-C4 -> 51.5 | D5: range
B6: 104 | C6: =STDEV(B:B) -> 11.04887672 | D6: SD
B7: 106.5 | C7: =VAR(B:B) -> 122.0776768 | D7: variance
B8: 95.5
B9: 102.5
B10: 83.5
B11: 105 | C11: mean | D11: =B101 -> 104.5 | F11: =$G$11-$D$13 -> 100 | G11: =D11 -> 104.5 | H11: =$G$11+$D$13 -> 109
B12: 96 | C12: sd | D12: =STDEV('2_Sample'!C:C) -> 6.363961031 | F12: =$G$11-(2*$D$13) -> 95.5 | H12: =$G$11+(2*$D$13) -> 113.5
B13: 99.5 | C13: se | D13: =D12/(SQRT(2)) -> 4.5 | F13: =$G$11-(3*$D$13) -> 91 | H13: =$G$11+(3*$D$13) -> 118
B14: 111
B15: 97.5
B16: 94
B17: 100
B18: 114.5
B19: 113
B20: 117
B21: 107.5
B22: 107.5
B23: 105.5
B24: 90.5
B25: 84
B26: 74.5
B27: 98.5
B28: 94.5
B29: 125
B30: 94
B31: 115
B32: 103.5
B33: 102.5
B34: 99
B35: 105.5
B36: 99.5
B37: 84.5
B38: 78.5
B39: 100.5
B40: 102
B41: 85
B42: 88.5
B43: 86.5
B44: 108
B45: 91.5
B46: 95
B47: 96
B48: 90
B49: 90
B50: 92.5
B51: 97.5
B52: 109.5
B53: 102
B54: 107.5
B55: 94
B56: 105.5
B57: 103
B58: 90.5
B59: 107
B60: 103
B61: 108
B62: 87.5
B63: 109.5
B64: 115.5
B65: 89
B66: 81
B67: 76.5
B68: 91.5
B69: 106
B70: 97.5
B71: 101
B72: 105
B73: 111
B74: 104
B75: 99
B76: 83
B77: 109
B78: 112.5
B79: 98
B80: 93
B81: 94.5
B82: 113.5
B83: 115
B84: 123.5
B85: 110
B86: 104.5
B87: 98.5
B88: 80.5
B89: 89.5
B90: 118
B91: 99
B92: 112
B93: 102
B94: 105
B95: 90.5
B96: 78
B97: 103.5
B98: 99
B99: 98
B100: 101
B101: 104.5

Sheet 4_Sample
A1: ser | B1: Iqscore | C1: IQ
A2: 3481 | B2: 102.3519039 | C2: =ROUND(B2,0) -> 102
A3: 66785 | B3: 78.31549736 | C3: 78
A4: 93468 | B4: 91.92455423 | C4: 92
A5: 57382 | B5: 86.28095174 | C5: 86

Sheet 4_Means
A1: Mean | B1: Means
A2: =AVERAGE('4_Sample'!C:C) -> 89.5 | B2: 107.75 | C2: =AVERAGE(B:B) -> 99.7675 | D2: mean
B3: 100.25 | C3: =MAX(B:B) -> 122.75 | D3: max
B4: 99.75 | C4: =MIN(B:B) -> 78.75 | D4: min
B5: 94.5 | C5: =C3-C4 -> 44 | D5: range
B6: 98.5 | C6: =STDEV(B:B) -> 8.529083858 | D6: SD
B7: 91.25 | C7: =VAR(B:B) -> 72.74527146 | D7: variance
B8: 108.5
B9: 108.25
B10: 104.5
B11: 108.5 | C11: mean | D11: =B101 -> 89.5 | F11: =$G$11-$D$13 -> 84.44200303 | G11: =D11 -> 89.5 | H11: =$G$11+$D$13 -> 94.55799697
B12: 94.25 | C12: sd | D12: =STDEV('4_Sample'!C:C) -> 10.11599394 | F12: =$G$11-(2*$D$13) -> 79.38400606 | H12: =$G$11+(2*$D$13) -> 99.61599394
B13: 106.75 | C13: se | D13: =D12/(SQRT(COUNT('4_Sample'!B:B))) -> 5.057996968 | F13: =$G$11-(3*$D$13) -> 74.32600909 | H13: =$G$11+(3*$D$13) -> 104.6739909
B14: 105.5
B15: 95.5
B16: 99
B17: 106
B18: 99.5
B19: 89.75
B20: 91.75
B21: 88
B22: 108
B23: 104.5
B24: 114.25
B25: 109.75
B26: 78.75
B27: 97.5
B28: 92
B29: 111.5
B30: 97
B31: 91
B32: 94.5
B33: 103.25
B34: 106.25
B35: 94.75
B36: 111
B37: 91.5
B38: 94
B39: 95
B40: 101.75
B41: 93.5
B42: 102
B43: 84.75
B44: 106
B45: 104.25
B46: 107.5
B47: 102.25
B48: 104.5
B49: 93
B50: 118.25
B51: 102.25
B52: 86
B53: 100
B54: 105.75
B55: 105.5
B56: 103
B57: 121.25
B58: 100
B59: 110.75
B60: 102.5
B61: 122.75
B62: 81.25
B63: 99.75
B64: 109.5
B65: 101
B66: 93.25
B67: 102
B68: 89
B69: 102.5
B70: 86.25
B71: 95
B72: 115.25
B73: 99.75
B74: 109.25
B75: 100.5
B76: 92
B77: 107
B78: 101.25
B79: 108
B80: 94.75
B81: 109.75
B82: 94.75
B83: 97.75
B84: 93.5
B85: 96
B86: 86
B87: 83.75
B88: 100.25
B89: 98
B90: 103.25
B91: 90.5
B92: 96.5
B93: 93.5
B94: 93
B95: 95.25
B96: 115
B97: 93.25
B98: 93
B99: 98
B100: 99.25
B101: 89.5

Sheet 16_Sample
A1: ser | B1: Iqscore | C1: IQ
A2: 84097 | B2: 105.0297396 | C2: =ROUND(B2,0) -> 105
A3: 65585 | B3: 110.9530676 | C3: 111
A4: 119 | B4: 109.483712 | C4: 109
A5: 53273 | B5: 108.5500529 | C5: 109
A6: 42292 | B6: 106.4305977 | C6: 106
A7: 73545 | B7: 121.3641315 | C7: 121
A8: 53609 | B8: 136.3204053 | C8: 136
A9: 85699 | B9: 107.7254503 | C9: 108
A10: 91329 | B10: 88.64272667 | C10: 89
A11: 12493 | B11: 75.983514 | C11: 76
A12: 3584 | B12: 108.4624244 | C12: 108
A13: 60311 | B13: 86.20872295 | C13: 86
A14: 18885 | B14: 86.64906681 | C14: 87
A15: 651 | B15: 79.89064034 | C15: 80
A16: 51637 | B16: 108.2563318 | C16: 108
A17: 3580 | B17: 93.69542656 | C17: 94

Sheet 16_Means
A1: Mean | B1: Means | C1: Gmean
A2: =AVERAGE('16_Sample'!C:C) -> 102.0625 | B2: 100.6875 | C2: =AVERAGE(B:B) -> 100.039375 | D2: mean
B3: 100.5625 | C3: =MAX(B:B) -> 108.375 | D3: max
B4: 96.0625 | C4: =MIN(B:B) -> 91.375 | D4: min
B5: 97.25 | C5: =C3-C4 -> 17 | D5: range
B6: 97.4375 | C6: =STDEV(B:B) -> 3.543010607 | D6: SD
B7: 97.5 | C7: =VAR(B:B) -> 12.55292416 | D7: variance
B8: 98.9375
B9: 100.3125
B10: 95.375
B11: 95.875 | C11: mean | D11: =B101 -> 102.0625 | F11: =$G$11-$D$13 -> 98.13453536 | G11: =D11 -> 102.0625 | H11: =$G$11+$D$13 -> 105.9904646
B12: 106.8125 | C12: sd | D12: =STDEV('16_Sample'!C:C) -> 15.71185858 | F12: =$G$11-(2*$D$13) -> 94.20657071 | H12: =$G$11+(2*$D$13) -> 109.9184293
B13: 99.9375 | C13: se | D13: =D12/(SQRT(COUNT('16_Sample'!B:B))) -> 3.927964645 | F13: =$G$11-(3*$D$13) -> 90.27860607 | H13: =$G$11+(3*$D$13) -> 113.8463939
B14: 95.5625
B15: 100.3125
B16: 97.875
B17: 101.4375
B18: 103.4375
B19: 99.3125
B20: 103.25
B21: 94.5625
B22: 91.375
B23: 104.375
B24: 102.125
B25: 107.1875
B26: 100.75
B27: 100.625
B28: 102.9375
B29: 95.375
B30: 108.375
B31: 98.75
B32: 100.375
B33: 97.625
B34: 101.375
B35: 99.5625
B36: 99.25
B37: 96.9375
B38: 107.25
B39: 96.25
B40: 95.3125
B41: 99.1875
B42: 96.1875
B43: 101.9375
B44: 99.9375
B45: 99.625
B46: 103
B47: 96.375
B48: 104.375
B49: 98.4375
B50: 100.1875
B51: 106.375
B52: 104.4375
B53: 101.125
B54: 100.6875
B55: 102.5
B56: 104.25
B57: 93.1875
B58: 99.0625
B59: 100.875
B60: 103.4375
B61: 100
B62: 92.5625
B63: 107.625
B64: 103.125
B65: 100.625
B66: 101.5625
B67: 95.4375
B68: 100.9375
B69: 99.625
B70: 98.9375
B71: 92.9375
B72: 101.625
B73: 100.75
B74: 97.5
B75: 100.625
B76: 96.625
B77: 100.5625
B78: 103.8125
B79: 98.5625
B80: 103.5625
B81: 101.3125
B82: 96.375
B83: 99.75
B84: 100.0625
B85: 93.75
B86: 102.125
B87: 98
B88: 97
B89: 96.5
B90: 101.4375
B91: 100.25
B92: 99.0625
B93: 103.25
B94: 105.9375
B95: 103
B96: 96.125
B97: 97.8125
B98: 106.8125
B99: 99.4375
B100: 103.375
B101: 102.0625

Sheet 25_Sample
A1: ser | B1: Iqscore | C1: IQ
A2: 80881 | B2: 105.3711607 | C2: =ROUND(B2,0) -> 105
A3: 31687 | B3: 72.17556419 | C3: 72
A4: 38709 | B4: 94.71861508 | C4: 95
A5: 8066 | B5: 109.3194907 | C5: 109
A6: 22476 | B6: 93.43716295 | C6: 93
A7: 30558 | B7: 123.1099142 | C7: 123
A8: 96124 | B8: 78.09667803 | C8: 78
A9: 98738 | B9: 110.2778767 | C9: 110
A10: 86714 | B10: 109.0634327 | C10: 109
A11: 54079 | B11: 86.91191649 | C11: 87
A12: 1855 | B12: 98.52497507 | C12: 99
A13: 77662 | B13: 86.04045722 | C13: 86
A14: 86589 | B14: 95.90876053 | C14: 96
A15: 69516 | B15: 111.1013723 | C15: 111
A16: 35354 | B16: 85.48268112 | C16: 85
A17: 62738 | B17: 127.4556709 | C17: 127
A18: 99647 | B18: 99.21496942 | C18: 99
A19: 50484 | B19: 100.4617487 | C19: 100
A20: 57025 | B20: 119.108179 | C20: 119
A21: 28997 | B21: 127.5766248 | C21: 128
A22: 32046 | B22: 86.31816662 | C22: 86
A23: 84757 | B23: 116.3198798 | C23: 116
A24: 84796 | B24: 100.3771236 | C24: 100
A25: 78911 | B25: 91.78826388 | C25: 92
A26: 7620 | B26: 88.98856348 | C26: 89

Sheet 25_Means
A1: Mean | B1: Means
A2: =AVERAGE('25_Sample'!C:C) -> 100.56 | B2: 101.4 | C2: =AVERAGE(B:B) -> 100.3996 | D2: mean
B3: 97.08 | C3: =MAX(B:B) -> 109.96 | D3: max
B4: 95.8 | C4: =MIN(B:B) -> 92.28 | D4: min
B5: 102.16 | C5: =C3-C4 -> 17.68 | D5: range
B6: 97.76 | C6: =STDEV(B:B) -> 3.732932857 | D6: SD
B7: 99.16 | C7: =VAR(B:B) -> 13.93478772 | D7: variance
B8: 102.76
B9: 99.8
B10: 99.36
B11: 107.4 | C11: mean | D11: =B101 -> 100.56 | F11: =$G$11-$D$13 -> 97.56273458 | G11: =D11 -> 100.56 | H11: =$G$11+$D$13 -> 103.5572654
B12: 99.52 | C12: sd | D12: =STDEV('25_Sample'!C:C) -> 14.9863271 | F12: =$G$11-(2*$D$13) -> 94.56546916 | H12: =$G$11+(2*$D$13) -> 106.5545308
B13: 103.52 | C13: se | D13: =D12/(SQRT(COUNT('25_Sample'!B:B))) -> 2.99726542 | F13: =$G$11-(3*$D$13) -> 91.56820374 | H13: =$G$11+(3*$D$13) -> 109.5517963
B14: 99.68
B15: 99.36
B16: 95.96
B17: 97.76
B18: 97.08
B19: 101.24
B20: 97.48
B21: 102.64
B22: 100.2
B23: 100.28
B24: 96.12
B25: 97.52
B26: 106.24
B27: 97.32
B28: 101.2
B29: 93.92
B30: 103
B31: 102.72
B32: 95
B33: 99.36
B34: 105.44
B35: 101.24
B36: 107.72
B37: 103.16
B38: 104.12
B39: 98.56
B40: 100.44
B41: 98.12
B42: 104.28
B43: 98.68
B44: 101.52
B45: 101.32
B46: 94.16
B47: 104.56
B48: 98
B49: 97.64
B50: 106.44
B51: 107.48
B52: 100.12
B53: 97.04
B54: 100.8
B55: 94.56
B56: 104.8
B57: 105.44
B58: 99.72
B59: 104.12
B60: 99.32
B61: 99.32
B62: 97.92
B63: 101.8
B64: 99.52
B65: 103.12
B66: 106.56
B67: 92.6
B68: 102.44
B69: 105.16
B70: 101.4
B71: 104.96
B72: 97.84
B73: 103.32
B74: 101.4
B75: 96.24
B76: 100.8
B77: 101
B78: 103.56
B79: 102.76
B80: 100.12
B81: 109.96
B82: 104.28
B83: 102.88
B84: 100.6
B85: 99.48
B86: 92.52
B87: 102.36
B88: 96.12
B89: 98.4
B90: 94.72
B91: 101.4
B92: 104.28
B93: 92.52
B94: 95.76
B95: 105.4
B96: 92.28
B97: 95.44
B98: 101.72
B99: 99.12
B100: 99.72
B101: 100.56

Sheet 100_Sample
A1: ser | B1: Iqscore | C1: IQ
A2: 75826 | B2: 114.7226287 | C2: =ROUND(B2,0) -> 115
A3: 88679 | B3: 96.41673835 | C3: 96
A4: 73501 | B4: 103.3988167 | C4: 103
A5: 92638 | B5: 93.33094232 | C5: 93
A6: 83169 | B6: 84.45323396 | C6: 84
A7: 61498 | B7: 123.4711025 | C7: 123
A8: 95498 | B8: 111.2362228 | C8: 111
A9: 30285 | B9: 100.2848875 | C9: 100
A10: 84317 | B10: 136.6255116 | C10: 137
A11: 40792 | B11: 85.79222108 | C11: 86
A12: 34399 | B12: 76.11140807 | C12: 76
A13: 8234 | B13: 78.03916021 | C13: 78
A14: 91509 | B14: 88.74890331 | C14: 89
A15: 21098 | B15: 107.7236181 | C15: 108
A16: 12843 | B16: 111.4439574 | C16: 111
A17: 39823 | B17: 116.8759136 | C17: 117
A18: 20984 | B18: 104.3396667 | C18: 104
A19: 84941 | B19: 88.82216374 | C19: 89
A20: 89501 | B20: 95.3741289 | C20: 95
A21: 30283 | B21: 64.40849625 | C21: 64
A22: 13302 | B22: 84.15122427 | C22: 84
A23: 41898 | B23: 105.0139666 | C23: 105
A24: 41895 | B24: 118.6552638 | C24: 119
A25: 28300 | B25: 104.2205508 | C25: 104
A26: 78649 | B26: 75.98022559 | C26: 76
A27: 92660 | B27: 110.9053259 | C27: 111
A28: 74206 | B28: 82.02104878 | C28: 82
A29: 2583 | B29: 93.35647068 | C29: 93
A30: 67153 | B30: 92.91153195 | C30: 93
A31: 18090 | B31: 130.3620092 | C31: 130
A32: 50087 | B32: 107.1018817 | C32: 107
A33: 43421 | B33: 103.5268883 | C33: 104
A34: 64196 | B34: 126.2274508 | C34: 126
A35: 93294 | B35: 103.0804731 | C35: 103
A36: 50478 | B36: 118.0007089 | C36: 118
A37: 89247 | B37: 99.17973253 | C37: 99
A38: 10727 | B38: 93.77628985 | C38: 94
A39: 26675 | B39: 105.2155183 | C39: 105
A40: 56414 | B40: 63.02990218 | C40: 63
A41: 78202 | B41: 99.23650404 | C41: 99
A42: 48573 | B42: 102.8799853 | C42: 103
A43: 24001 | B43: 112.752757 | C43: 113
A44: 56841 | B44: 112.2872537 | C44: 112
A45: 24697 | B45: 116.0698306 | C45: 116
A46: 90753 | B46: 108.7274465 | C46: 109
A47: 77467 | B47: 90.15196116 | C47: 90
A48: 81430 | B48: 118.0232297 | C48: 118
A49: 20974 | B49: 104.5047013 | C49: 105
A50: 16789 | B50: 64.27254309 | C50: 64
A51: 79753 | B51: 77.6439777 | C51: 78
A52: 58385 | B52: 92.80967935 | C52: 93
A53: 63671 | B53: 91.86670988 | C53: 92
A54: 93021 | B54: 102.987722 | C54: 103
A55: 63093 | B55: 105.684357 | C55: 106
A56: 97257 | B56: 114.1869451 | C56: 114
A57: 5380 | B57: 98.56276581 | C57: 99
A58: 17917 | B58: 91.01547451 | C58: 91
A59: 63332 | B59: 126.4221757 | C59: 126
A60: 96758 | B60: 113.1427366 | C60: 113
A61: 31216 | B61: 95.4459871 | C61: 95
A62: 92386 | B62: 131.4658424 | C62: 131
A63: 8993 | B63: 90.46313421 | C63: 90
A64: 77574 | B64: 109.5728594 | C64: 110
A65: 60375 | B65: 109.9003469 | C65: 110
A66: 15091 | B66: 98.3475719 | C66: =ROUND(B66,0) -> 98
A67: 35335 | B67: 124.3795173 | C67: 124
A68: 40175 | B68: 109.6836654 | C68: 110
A69: 72696 | B69: 113.3702673 | C69: 113
A70: 2763 | B70: 123.8031091 | C70: 124
A71: 23419 | B71: 135.967469 | C71: 136
A72: 47627 | B72: 80.25647993 | C72: 80
A73: 60226 | B73: 117.1726131 | C73: 117
A74: 35509 | B74: 109.7399493 | C74: 110
A75: 64169 | B75: 109.6179881 | C75: 110
A76: 33409 | B76: 108.8414049 | C76: 109
A77: 3782 | B77: 108.2607923 | C77: 108
A78: 27131 | B78: 109.3601059 | C78: 109
A79: 47435 | B79: 99.57122333 | C79: 100
A80: 34222 | B80: 91.26253464 | C80: 91
A81: 74513 | B81: 91.77794247 | C81: 92
A82: 20431 | B82: 105.0577212 | C82: 105
A83: 76055 | B83: 86.20878553 | C83: 86
A84: 47801 | B84: 85.63038189 | C84: 86
A85: 60462 | B85: 86.64882954 | C85: 87
A86: 7530 | B86: 106.7667892 | C86: 107
A87: 4918 | B87: 119.966552 | C87: 120
A88: 15728 | B88: 75.12589979 | C88: 75
A89: 18129 | B89: 97.32703941 | C89: 97
A90: 75178 | B90: 75.9418212 | C90: 76
A91: 5026 | B91: 105.0086184 | C91: 105
A92: 31248 | B92: 109.0602492 | C92: 109
A93: 49034 | B93: 97.67788107 | C93: 98
A94: 75065 | B94: 86.48095059 | C94: 86
A95: 52557 | B95: 94.39443711 | C95: 94
A96: 72077 | B96: 89.91172589 | C96: 90
A97: 1279 | B97: 90.37510215 | C97: 90
A98: 19136 | B98: 116.3762764 | C98: 116
A99: 42928 | B99: 125.6923797 | C99: 126
A100: 58216 | B100: 87.172842 | C100: 87
A101: 96110 | B101: 117.2149539 | C101: 117

Sheet 100_Means
A1: Mean | B1: Means
A2: =AVERAGE('100_Sample'!C:C) -> 101.63 | B2: 98.7 | C2: =AVERAGE(B:B) -> 100.221 | D2: mean
B3: 102.13 | C3: =MAX(B:B) -> 103.63 | D3: max
B4: 101.79 | C4: =MIN(B:B) -> 96.79 | D4: min
B5: 100.47 | C5: =C3-C4 -> 6.84 | D5: range
B6: 99.52 | C6: =STDEV(B:B) -> 1.498102841 | D6: SD
B7: 100.55 | C7: =VAR(B:B) -> 2.244312121 | D7: variance
B8: 99.25
B9: 97.48
B10: 101
B11: 100.78 | C11: mean | D11: =B101 -> 101.63 | F11: =$G$11-$D$13 -> 100.0596526 | G11: =D11 -> 101.63 | H11: =$G$11+$D$13 -> 103.2003474
B12: 100.2 | C12: sd | D12: =STDEV('100_Sample'!C:C) -> 15.70347385 | F12: =$G$11-(2*$D$13) -> 98.48930523 | H12: =$G$11+(2*$D$13) -> 104.7706948
B13: 99.59 | C13: se | D13: =D12/(SQRT(COUNT('100_Sample'!B:B))) -> 1.570347385 | F13: =$G$11-(3*$D$13) -> 96.91895785 | H13: =$G$11+(3*$D$13) -> 106.3410422
B14: 102.89
B15: 102.08
B16: 102.47
B17: 100.64
B18: 99.96
B19: 99.34
B20: 100.48
B21: 99.68
B22: 99.56
B23: 97.49
B24: 100.95
B25: 102.22
B26: 99.08
B27: 99.46
B28: 100.92
B29: 101.46
B30: 98.86
B31: 98.51
B32: 100.87
B33: 101.72
B34: 99.39
B35: 96.79
B36: 97.75
B37: 98.19
B38: 101
B39: 101.12
B40: 99.21
B41: 100.22
B42: 99.82
B43: 102.06
B44: 100.38
B45: 96.93
B46: 100.57
B47: 100.81
B48: 100.16
B49: 103.26
B50: 102.51
B51: 100.4
B52: 100.63
B53: 100.33
B54: 99
B55: 97.58
B56: 102.38
B57: 100.21
B58: 101.8
B59: 103.63
B60: 99.85
B61: 99.36
B62: 99.83
B63: 98.55
B64: 99.47
B65: 100.03
B66: 101.14
B67: 100.55
B68: 101.65
B69: 99.45
B70: 101.03
B71: 102.06
B72: 103.43
B73: 100.49
B74: 100.72
B75: 100.83
B76: 101.63
B77: 99.04
B78: 99.31
B79: 97.58
B80: 99.5
B81: 98.61
B82: 99.16
B83: 98.33
B84: 100.28
B85: 103.52
B86: 99.71
B87: 99.25
B88: 100.43
B89: 101.65
B90: 102.03
B91: 98.48
B92: 98.34
B93: 98.42
B94: 98.9
B95: 101.59
B96: 99.11
B97: 99.58
B98: 99.72
B99: 102.06
B100: 99.57
B101: 101.63

Sheet 400_Sample
A1: ser | B1: Iqscore | C1: IQ
A2: 62887 | B2: 102.4854611 | C2: =ROUND(B2,0) -> 102
A3: 19414 | B3: 76.7380773 | C3: 77
A4: 30540 | B4: 114.4539052 | C4: 114
A5: 98791 | B5: 77.1254355 | C5: 77
A6: 57898 | B6: 77.56604624 | C6: 78
A7: 82744 | B7: 117.6107912 | C7: 118
A8: 20458 | B8: 105.6676983 | C8: 106
A9: 14317 | B9: 103.5385948 | C9: 104
A10: 80486 | B10: 90.31935663 | C10: 90
A11: 32486 | B11: 96.03083745 | C11: 96
A12: 43716 | B12: 74.96717213 | C12: 75
A13: 52086 | B13: 110.0907714 | C13: 110
A14: 69547 | B14: 107.1048541 | C14: 107
A15: 83198 | B15: 91.3860219 | C15: 91
A16: 62894 | B16: 112.495833 | C16: 112
A17: 5610 | B17: 109.7348392 | C17: 110
A18: 796 | B18: 109.7486041 | C18: 110
A19: 38986 | B19: 83.14856474 | C19: 83
A20: 71920 | B20: 102.7075085 | C20: 103
A21: 74358 | B21: 94.83258818 | C21: 95
A22: 32077 | B22: 86.08407371 | C22: 86
A23: 57573 | B23: 89.97022122 | C23: 90
A24: 3880 | B24: 97.34745314 | C24: 97
A25: 40319 | B25: 85.27096739 | C25: 85
A26: 73672 | B26: 91.46044947 | C26: 91
A27: 39354 | B27: 84.34902811 | C27: 84
A28: 63834 | B28: 96.95131266 | C28: 97
A29: 69563 | B29: 96.39371417 | C29: 96
A30: 83621 | B30: 102.8434601 | C30: 103
A31: 41465 | B31: 89.26228333 | C31: 89
A32: 86628 | B32: 73.41560004 | C32: 73
A33: 38805 | B33: 103.0869637 | C33: 103
A34: 88028 | B34: 115.1893655 | C34: 115
A35: 16841 | B35: 109.686858 | C35: 110
A36: 19703 | B36: 99.84383355 | C36: 100
A37: 86968 | B37: 110.2680554 | C37: 110
A38: 26378 | B38: 69.92872791 | C38: 70
A39: 78282 | B39: 105.4206754 | C39: 105
A40: 30912 | B40: 111.2528604 | C40: 111
A41: 91742 | B41: 87.19942901 | C41: 87
A42: 21844 | B42: 115.859955 | C42: 116
A43: 87513 | B43: 115.6307894 | C43: 116
A44: 41332 | B44: 86.86253706 | C44: 87
A45: 71152 | B45: 120.6879549 | C45: 121
A46: 76607 | B46: 69.20406352 | C46: 69
A47: 69245 | B47: 94.7390106 | C47: 95
A48: 83072 | B48: 107.2240959 | C48: 107
A49: 10116 | B49: 109.5010687 | C49: 110
A50: 92161 | B50: 109.0465026 | C50: 109
A51: 50245 | B51: 100.7808305 | C51: 101
A52: 82091 | B52: 102.1867605 | C52: 102
A53: 12010 | B53: 66.35953322 | C53: 66
A54: 14631 | B54: 93.21740612 | C54: 93
A55: 23387 | B55: 123.2097029 | C55: 123
A56: 66007 | B56: 95.50589649 | C56: 96
A57: 75227 | B57: 91.27261933 | C57: 91
A58: 5082 | B58: 75.9677627 | C58: 76
A59: 36727 | B59: 95.54551208 | C59: 96
A60: 96912 | B60: 114.5913988 | C60: 115
A61: 94745 | B61: 79.7488022 | C61: 80
A62: 34833 | B62: 122.9403398 | C62: 123
A63: 7554 | B63: 106.7429135 | C63: 107
A64: 29181 | B64: 106.4108532 | C64: 106
A65: 88685 | B65: 104.4042795 | C65: 104
A66: 5772 | B66: 83.64327917 | C66: =ROUND(B66,0) -> 84
A67: 61461 | B67: 93.9222925 | C67: 94
A68: 92288 | B68: 93.70017755 | C68: 94
A69: 49875 | B69: 108.836479 | C69: 109
A70: 95663 | B70: 81.70678228 | C70: 82
A71: 96404 | B71: 102.7779568 | C71: 103
A72: 98618 | B72: 73.38667417 | C72: 73
A73: 22414 | B73: 94.48021838 | C73: 94
A74: 28462 | B74: 50.62093885 | C74: 51
A75: 71763 | B75: 106.9349164 | C75: 107
A76: 76277 | B76: 93.36662936 | C76: 93
A77: 3231 | B77: 143.3892142 | C77: 143
A78: 69629 | B78: 90.51924955 | C78: 91
A79: 22407 | B79: 103.7313645 | C79: 104
A80: 26907 | B80: 104.7134243 | C80: 105
A81: 68651 | B81: 100.5620579 | C81: 101
A82: 46440 | B82: 115.1652774 | C82: 115
A83: 97758 | B83: 123.1954593 | C83: 123
A84: 8497 | B84: 74.21487636 | C84: 74
A85: 25955 | B85: 107.231584 | C85: 107
A86: 93303 | B86: 104.4651208 | C86: 104
A87: 25847 | B87: 92.96114767 | C87: 93
A88: 43198 | B88: 109.8586711 | C88: 110
A89: 89944 | B89: 84.36272713 | C89: 84
A90: 22062 | B90: 104.8050038 | C90: 105
A91: 2386 | B91: 102.7247207 | C91: 103
A92: 50131 | B92: 101.5804346 | C92: 102
A93: 84502 | B93: 121.1553207 | C93: 121
A94: 17320 | B94: 110.7815018 | C94: 111
A95: 4820 | B95: 107.7891844 | C95: 108
A96: 3204 | B96: 103.1765613 | C96: 103
A97: 69155 | B97: 83.82326115 | C97: 84
A98: 56744 | B98: 91.81051294 | C98: 92
A99: 31399 | B99: 113.2081935 | C99: 113
A100: 13922 | B100: 100.7500369 | C100: 101
A101: 90639 | B101: 100.7533498 | C101: 101
A102: 56379 | B102: 106.4678089 | C102: 106
A103: 65233 | B103: 99.41717062 | C103: 99
A104: 39200 | B104: 122.4353645 | C104: 122
A105: 59458 | B105: 81.02629893 | C105: 81
A106: 40962 | B106: 76.82721417 | C106: 77
A107: 63361 | B107: 76.86113453 | C107: 77
A108: 14176 | B108: 105.8368396 | C108: 106
A109: 51447 | B109: 96.97462749 | C109: 97
A110: 39237 | B110: 111.7198591 | C110: 112
A111: 70808 | B111: 83.5782015 | C111: 84
A112: 10024 | B112: 68.29551619 | C112: 68
A113: 34338 | B113: 105.6194319 | C113: 106
A114: 4260 | B114: 112.2376536 | C114: 112
A115: 59651 | B115: 88.61099011 | C115: 89
A116: 16764 | B116: 96.89829386 | C116: 97
A117: 19319 | B117: 83.07515194 | C117: 83
A118: 58718 | B118: 94.69468889 | C118: 95
A119: 93078 | B119: 92.00153329 | C119: 92
A120: 51077 | B120: 102.5339717 | C120: 103
A121: 37596 | B121: 122.8856355 | C121: 123
A122: 65240 | B122: 132.2665567 | C122: 132
A123: 14456 | B123: 98.39685822 | C123: 98
A124: 89116 | B124: 94.95698015 | C124: 95
A125: 41959 | B125: 130.2774446 | C125: 130
A126: 21707 | B126: 91.37617037 | C126: 91
A127: 61388 | B127: 107.0777949 | C127: 107
A128: 24321 | B128: 90.05000218 | C128: 90
A129: 33341 | B129: 115.0376251 | C129: 115
A130: 81568 | B130: 84.55824156 | C130: =ROUND(B130,0) -> 85
A131: 4778 | B131: 106.7063476 | C131: 107
A132: 50228 | B132: 82.48313847 | C132: 82
A133: 12385 | B133: 95.04987157 | C133: 95
A134: 99150 | B134: 85.49927654 | C134: 85
A135: 12896 | B135: 113.5850239 | C135: 114
A136: 68282 | B136: 128.200751 | C136: 128
A137: 55999 | B137: 108.4992045 | C137: 108
A138: 99972 | B138: 100.9075452 | C138: 101
A139: 40434 | B139: 115.301577 | C139: 115
A140: 20654 | B140: 108.6092505 | C140: 109
A141: 18927 | B141: 121.5436892 | C141: 122
A142: 76057 | B142: 74.68684953 | C142: 75
A143: 42574 | B143: 104.5661839 | C143: 105
A144: 48048 | B144: 95.80794526 | C144: 96
A145: 60305 | B145: 120.1461695 | C145: 120
A146: 6245 | B146: 113.0049883 | C146: 113
A147: 14048 | B147: 140.397042 | C147: 140
A148: 72516 | B148: 92.77571843 | C148: 93
A149: 95227 | B149: 104.2757621 | C149: 104
A150: 1502 | B150: 99.53493953 | C150: 100
A151: 53204 | B151: 99.01061916 | C151: 99
A152: 5269 | B152: 100.8061565 | C152: 101
A153: 71307 | B153: 71.50898352 | C153: 72
A154: 75238 | B154: 98.45399049 | C154: 98
A155: 51062 | B155: 118.2169433 | C155: 118
A156: 79494 | B156: 99.42849362 | C156: 99
A157: 70241 | B157: 60.52815728 | C157: 61
A158: 38617 | B158: 97.24537216 | C158: 97
A159: 5382 | B159: 107.9773933 | C159: 108
A160: 8159 | B160: 114.1929148 | C160: 114
A161: 34369 | B161: 81.05514914 | C161: 81
A162: 20869 | B162: 113.6759053 | C162: 114
A163: 59726 | B163: 128.3109084 | C163: 128
A164: 66832 | B164: 119.7262077 | C164: 120
A165: 18237 | B165: 115.7175718 | C165: 116
A166: 14602 | B166: 79.56904433 | C166: 80
A167: 67517 | B167: 114.141091 | C167: 114
A168: 1491 | B168: 86.26364136 | C168: 86
A169: 65162 | B169: 115.7154077 | C169: 116
A170: 46116 | B170: 100.8854732 | C170: 101
A171: 81105 | B171: 100.5512253 | C171: 101
A172: 61337 | B172: 94.41799825 | C172: 94
A173: 8793 | B173: 113.2145784 | C173: 113
A174: 70715 | B174: 90.83491387 | C174: 91
A175: 65828 | B175: 73.49065752 | C175: 73
A176: 56605 | B176: 92.74327638 | C176: 93
A177: 99674 | B177: 84.02629373 | C177: 84
A178: 93019 | B178: 149.9081234 | C178: 150
A179: 39076 | B179: 88.56834996 | C179: 89
A180: 41378 | B180: 67.79498812 | C180: 68
A181: 56804 | B181: 100.9078095 | C181: 101
A182: 12278 | B182: 86.09464474 | C182: 86
A183: 34350 | B183: 82.54573268 | C183: 83
A184: 21400 | B184: 83.78453829 | C184: 84
A185: 44203 | B185: 110.8587464 | C185: 111
A186: 92683 | B186: 109.5142953 | C186: 110
A187: 90329 | B187: 118.3135903 | C187: 118
A188: 86887 | B188: 87.19667645 | C188: 87
A189: 72474 | B189: 95.0690329 | C189: 95
A190: 58678 | B190: 103.4100569 | C190: 103
A191: 64928 | B191: 87.78488606 | C191: 88
A192: 70341 | B192: 119.1739495 | C192: 119
A193: 25361 | B193: 89.35895787 | C193: 89
A194: 15273 | B194: 87.62833711 | C194: =ROUND(B194,0) -> 88
A195: 74365 | B195: 72.49101551 | C195: 72
A196: 29359 | B196: 96.4463111 | C196: 96
A197: 11320 | B197: 93.1205336 | C197: 93
A198: 93360 | B198: 84.99626604 | C198: 85
A199: 57220 | B199: 97.43310855 | C199: 97
A200: 54451 | B200: 85.29887016 | C200: 85
... 201 more rows

Sheet 400_Means
A1: Mean | B1: Means
A2: =AVERAGE('400_Sample'!C:C) -> 100.4125 | B2: 101.23 | C2: =AVERAGE(B:B) -> 99.95915 | D2: mean
B3: 101.08 | C3: =MAX(B:B) -> 101.63 | D3: max
B4: 99.445 | C4: =MIN(B:B) -> 98.275 | D4: min
B5: 100.6175 | C5: =C3-C4 -> 3.355 | D5: range
B6: 100.3775 | C6: =STDEV(B:B) -> 0.6839563143 | D6: SD
B7: 99.0525 | C7: =VAR(B:B) -> 0.4677962399 | D7: variance
B8: 99.1575
B9: 100.1425
B10: 100.175
B11: 100.7975 | C11: mean | D11: =B101 -> 100.4125 | F11: =$G$11-$D$13 -> 99.65842611 | G11: =D11 -> 100.4125 | H11: =$G$11+$D$13 -> 101.1665739
B12: 99.3225 | C12: sd | D12: =STDEV('400_Sample'!C:C) -> 15.08147775 | F12: =$G$11-(2*$D$13) -> 98.90435222 | H12: =$G$11+(2*$D$13) -> 101.9206478
B13: 100.5075 | C13: se | D13: =D12/(SQRT(COUNT('400_Sample'!B:B))) -> 0.7540738876 | F13: =$G$11-(3*$D$13) -> 98.15027834 | H13: =$G$11+(3*$D$13) -> 102.6747217
B14: 99.435
B15: 100.805
B16: 100.12
B17: 98.8575
B18: 100.1175
B19: 100.5725
B20: 100.52
B21: 99.1525
B22: 99.385
B23: 100.275
B24: 98.7075
B25: 101.1975
B26: 99.545
B27: 99.435
B28: 99.6275
B29: 99.52
B30: 101.63
B31: 100.795
B32: 99.805
B33: 100.275
B34: 100.1575
B35: 100.68
B36: 100.005
B37: 100.2925
B38: 100.645
B39: 99.94
B40: 99.875
B41: 100.47
B42: 100
B43: 99.6275
B44: 100.2075
B45: 100.7
B46: 100.42
B47: 99.775
B48: 99.705
B49: 98.73
B50: 99.2575
B51: 98.72
B52: 100.7325
B53: 99.415
B54: 100.3175
B55: 99.4975
B56: 99.955
B57: 99.5925
B58: 100.2925
B59: 99.8925
B60: 98.6825
B61: 100.775
B62: 99.62
B63: 101.0375
B64: 99.8175
B65: 100.395
B66: 100.0825
B67: 100.0175
B68: 100.3875
B69: 99.69
B70: 99.9625
B71: 100.23
B72: 98.98
B73: 99.2075
B74: 100.55
B75: 100.745
B76: 99.5975
B77: 99.7875
B78: 98.5175
B79: 99.785
B80: 100.07
B81: 100.2475
B82: 99.785
B83: 99.995
B84: 100.265
B85: 99.255
B86: 99.1
B87: 99.5225
B88: 100.8
B89: 99.055
B90: 101.075
B91: 100.115
B92: 100.4275
B93: 99.49
B94: 98.275
B95: 98.945
B96: 101.13
B97: 99.7625
B98: 99.4
B99: 100.8775
B100: 99.4575
B101: 100.4125

Sheet 900_Sample
A1: ser | B1: Iqscore | C1: IQ
A2: 3751 | B2: 99.05273974 | C2: =ROUND(B2,0) -> 99
A3: 73946 | B3: 108.8355443 | C3: 109
A4: 10572 | B4: 104.1188956 | C4: 104
A5: 2813 | B5: 89.67702667 | C5: 90
A6: 88485 | B6: 103.1907895 | C6: 103
A7: 38029 | B7: 76.14826176 | C7: 76
A8: 88463 | B8: 114.5988776 | C8: 115
A9: 83713 | B9: 109.1652799 | C9: 109
A10: 27059 | B10: 89.993803 | C10: 90
A11: 3485 | B11: 121.1649316 | C11: 121
A12: 73567 | B12: 93.81368459 | C12: 94
A13: 8994 | B13: 78.40912375 | C13: 78
A14: 34444 | B14: 95.88284897 | C14: 96
A15: 56647 | B15: 89.3826103 | C15: 89
A16: 13129 | B16: 78.01458412 | C16: 78
A17: 18163 | B17: 61.37242778 | C17: 61
A18: 48367 | B18: 117.9328957 | C18: 118
A19: 15587 | B19: 128.2716192 | C19: 128
A20: 59183 | B20: 89.57158895 | C20: 90
A21: 36374 | B21: 116.8476961 | C21: 117
A22: 49619 | B22: 100.6157666 | C22: 101
A23: 69180 | B23: 106.4383688 | C23: 106
A24: 51358 | B24: 81.69046351 | C24: 82
A25: 25985 | B25: 92.9028779 | C25: 93
A26: 7371 | B26: 96.12112274 | C26: 96
A27: 41162 | B27: 91.39127596 | C27: 91
A28: 24695 | B28: 91.56811278 | C28: 92
A29: 63127 | B29: 126.9180233 | C29: 127
A30: 49487 | B30: 95.19365327 | C30: 95
A31: 79195 | B31: 115.0423963 | C31: 115
A32: 42458 | B32: 110.2797388 | C32: 110
A33: 39259 | B33: 87.16476757 | C33: 87
A34: 57832 | B34: 103.9357386 | C34: 104
A35: 68929 | B35: 91.3815571 | C35: 91
A36: 53943 | B36: 105.7631489 | C36: 106
A37: 87739 | B37: 82.42092851 | C37: 82
A38: 88590 | B38: 87.02729994 | C38: 87
A39: 73067 | B39: 91.62275652 | C39: 92
A40: 77296 | B40: 89.69833436 | C40: 90
A41: 35378 | B41: 132.3962795 | C41: 132
A42: 17572 | B42: 116.3859786 | C42: 116
A43: 95422 | B43: 113.8817637 | C43: 114
A44: 7325 | B44: 84.87588872 | C44: 85
A45: 79009 | B45: 111.3102869 | C45: 111
A46: 10532 | B46: 107.8757884 | C46: 108
A47: 69986 | B47: 100.3070294 | C47: 100
A48: 48306 | B48: 119.8440449 | C48: 120
A49: 87046 | B49: 110.3294398 | C49: 110
A50: 18476 | B50: 112.074411 | C50: 112
A51: 74987 | B51: 128.496005 | C51: 128
A52: 71804 | B52: 140.3755014 | C52: 140
A53: 26048 | B53: 113.8419404 | C53: 114
A54: 97978 | B54: 92.4394746 | C54: 92
A55: 71955 | B55: 89.54090435 | C55: 90
A56: 99481 | B56: 67.99042499 | C56: 68
A57: 12282 | B57: 125.7960894 | C57: 126
A58: 56490 | B58: 68.30898464 | C58: 68
A59: 69782 | B59: 103.5303109 | C59: 104
A60: 10907 | B60: 87.19162052 | C60: 87
A61: 88281 | B61: 103.8210109 | C61: 104
A62: 22657 | B62: 101.3891576 | C62: 101
A63: 13787 | B63: 126.0281826 | C63: 126
A64: 76377 | B64: 88.87296622 | C64: 89
A65: 24414 | B65: 125.4115719 | C65: 125
A66: 41625 | B66: 97.51751844 | C66: =ROUND(B66,0) -> 98
A67: 99777 | B67: 109.2628086 | C67: 109
A68: 14721 | B68: 107.9250172 | C68: 108
A69: 45443 | B69: 98.03533764 | C69: 98
A70: 95360 | B70: 97.17955728 | C70: 97
A71: 13109 | B71: 84.93327356 | C71: 85
A72: 76115 | B72: 88.57272698 | C72: 89
A73: 82087 | B73: 104.4446029 | C73: 104
A74: 47953 | B74: 120.7739012 | C74: 121
A75: 92755 | B75: 105.284532 | C75: 105
A76: 49896 | B76: 114.0634289 | C76: 114
A77: 47584 | B77: 120.5906273 | C77: 121
A78: 15940 | B78: 111.2130211 | C78: 111
A79: 20362 | B79: 109.3689147 | C79: 109
A80: 97375 | B80: 101.3062566 | C80: 101
A81: 39254 | B81: 63.81117784 | C81: 64
A82: 63609 | B82: 100.4162775 | C82: 100
A83: 34313 | B83: 120.528303 | C83: 121
A84: 9645 | B84: 98.60005057 | C84: 99
A85: 65064 | B85: 80.79626964 | C85: 81
A86: 23314 | B86: 88.6207305 | C86: 89
A87: 68796 | B87: 97.12826812 | C87: 97
A88: 90401 | B88: 107.7639542 | C88: 108
A89: 95184 | B89: 91.04790579 | C89: 91
A90: 40790 | B90: 101.6184135 | C90: 102
A91: 17859 | B91: 136.5898436 | C91: 137
A92: 63745 | B92: 88.08979005 | C92: 88
A93: 38558 | B93: 99.74172601 | C93: 100
A94: 45460 | B94: 105.5176094 | C94: 106
A95: 24477 | B95: 90.57195557 | C95: 91
A96: 7001 | B96: 86.80706089 | C96: 87
A97: 44457 | B97: 103.8383676 | C97: 104
A98: 45755 | B98: 86.04099289 | C98: 86
A99: 94613 | B99: 130.3374032 | C99: 130
A100: 8531 | B100: 123.1510478 | C100: 123
A101: 29051 | B101: 81.9509774 | C101: 82
A102: 49420 | B102: 103.8735729 | C102: 104
A103: 36281 | B103: 99.78229308 | C103: 100
A104: 50543 | B104: 75.47824663 | C104: 75
A105: 26965 | B105: 72.68862501 | C105: 73
A106: 8828 | B106: 66.79305984 | C106: 67
A107: 23609 | B107: 103.7302522 | C107: 104
A108: 16906 | B108: 119.6198284 | C108: 120
A109: 67843 | B109: 108.356397 | C109: 108
A110: 91295 | B110: 109.0600173 | C110: 109
A111: 85898 | B111: 72.87602388 | C111: 73
A112: 25960 | B112: 100.3961708 | C112: 100
A113: 77913 | B113: 70.10378412 | C113: 70
A114: 74392 | B114: 130.496494 | C114: 130
A115: 21691 | B115: 75.53355174 | C115: 76
A116: 88331 | B116: 126.5395523 | C116: 127
A117: 6545 | B117: 130.1147651 | C117: 130
A118: 66254 | B118: 107.4586364 | C118: 107
A119: 37830 | B119: 115.2698812 | C119: 115
A120: 89745 | B120: 102.0607028 | C120: 102
A121: 77819 | B121: 107.0553019 | C121: 107
A122: 50895 | B122: 117.1778293 | C122: 117
A123: 13520 | B123: 115.9784511 | C123: 116
A124: 98833 | B124: 112.5324521 | C124: 113
A125: 67081 | B125: 109.3328556 | C125: 109
A126: 58523 | B126: 115.5162732 | C126: 116
A127: 89391 | B127: 120.8976099 | C127: 121
A128: 99954 | B128: 78.76473908 | C128: 79
A129: 2512 | B129: 87.28009281 | C129: 87
A130: 60847 | B130: 92.60440337 | C130: =ROUND(B130,0) -> 93
A131: 81564 | B131: 99.20137552 | C131: 99
A132: 50999 | B132: 88.11531076 | C132: 88
A133: 91687 | B133: 93.69779758 | C133: 94
A134: 91394 | B134: 127.7346073 | C134: 128
A135: 20708 | B135: 82.55652583 | C135: 83
A136: 66208 | B136: 91.79069672 | C136: 92
A137: 73136 | B137: 105.4926991 | C137: 105
A138: 90820 | B138: 97.09070411 | C138: 97
A139: 16108 | B139: 99.99644795 | C139: 100
A140: 23979 | B140: 118.3066916 | C140: 118
A141: 92912 | B141: 89.51970606 | C141: 90
A142: 77221 | B142: 124.3979883 | C142: 124
A143: 44721 | B143: 119.897926 | C143: 120
A144: 99687 | B144: 92.35316919 | C144: 92
A145: 6146 | B145: 93.80777358 | C145: 94
A146: 41449 | B146: 96.97492686 | C146: 97
A147: 65246 | B147: 115.346418 | C147: 115
A148: 23487 | B148: 115.4389139 | C148: 115
A149: 3617 | B149: 75.52073474 | C149: 76
A150: 67420 | B150: 89.13883708 | C150: 89
A151: 57182 | B151: 117.6202956 | C151: 118
A152: 63136 | B152: 93.70141149 | C152: 94
A153: 63309 | B153: 101.753869 | C153: 102
A154: 77431 | B154: 114.1580743 | C154: 114
A155: 84888 | B155: 99.69860812 | C155: 100
A156: 31798 | B156: 109.2997514 | C156: 109
A157: 26976 | B157: 109.5146822 | C157: 110
A158: 2469 | B158: 92.08230382 | C158: 92
A159: 86654 | B159: 87.35526853 | C159: 87
A160: 20861 | B160: 78.38785893 | C160: 78
A161: 1705 | B161: 118.1452408 | C161: 118
A162: 77526 | B162: 125.5334763 | C162: 126
A163: 88754 | B163: 91.07078774 | C163: 91
A164: 57749 | B164: 117.4140574 | C164: 117
A165: 86476 | B165: 88.32390322 | C165: 88
A166: 61909 | B166: 118.1210775 | C166: 118
A167: 44515 | B167: 96.12697455 | C167: 96
A168: 88732 | B168: 73.91298206 | C168: 74
A169: 23727 | B169: 112.1518789 | C169: 112
A170: 84556 | B170: 96.95664662 | C170: 97
A171: 98377 | B171: 80.8158603 | C171: 81
A172: 86741 | B172: 111.0816937 | C172: 111
A173: 75915 | B173: 78.43045636 | C173: 78
A174: 14344 | B174: 90.0074698 | C174: 90
A175: 74955 | B175: 101.7145834 | C175: 102
A176: 84180 | B176: 113.898828 | C176: 114
A177: 27080 | B177: 104.4805675 | C177: 104
A178: 55406 | B178: 106.2354101 | C178: 106
A179: 93103 | B179: 87.87707783 | C179: 88
A180: 30738 | B180: 123.6546498 | C180: 124
A181: 9405 | B181: 82.04248203 | C181: 82
A182: 67440 | B182: 59.13108091 | C182: 59
A183: 4975 | B183: 100.256524 | C183: 100
A184: 76200 | B184: 133.9413389 | C184: 134
A185: 54781 | B185: 98.96804814 | C185: 99
A186: 11023 | B186: 105.2826799 | C186: 105
A187: 60090 | B187: 108.070132 | C187: 108
A188: 78263 | B188: 103.5944289 | C188: 104
A189: 71369 | B189: 90.68725755 | C189: 91
A190: 17924 | B190: 90.40658854 | C190: 90
A191: 94390 | B191: 100.3227288 | C191: 100
A192: 35347 | B192: 102.0026307 | C192: 102
A193: 45161 | B193: 109.1724392 | C193: 109
A194: 86417 | B194: 108.5211536 | C194: =ROUND(B194,0) -> 109
A195: 44309 | B195: 107.6930158 | C195: 108
A196: 44406 | B196: 83.44986209 | C196: 83
A197: 66544 | B197: 114.9013962 | C197: 115
A198: 1589 | B198: 83.54719942 | C198: 84
A199: 85827 | B199: 82.3611803 | C199: 82
A200: 83742 | B200: 96.13794814 | C200: 96
... 701 more rows

Sheet 900_Means
A1: Mean | B1: Means
A2: =AVERAGE('900_Sample'!C:C) -> 99.85777778 | B2: 100.5355556 | C2: =AVERAGE(B:B) -> 100.0531111 | D2: mean
B3: 100.0988889 | C3: =MAX(B:B) -> 101.2555556 | D3: max
B4: 100.5544444 | C4: =MIN(B:B) -> 98.89555556 | D4: min
B5: 99.28444444 | C5: =C3-C4 -> 2.36 | D5: range
B6: 100.0511111 | C6: =STDEV(B:B) -> 0.5179179784 | D6: SD
B7: 100.7844444 | C7: =VAR(B:B) -> 0.2682390323 | D7: variance
B8: 99.95111111
B9: 99.94
B10: 99.87333333
B11: 100.3788889 | C11: mean | D11: =B101 -> 99.85777778 | F11: =$G$11-$D$13 -> 99.34491301 | G11: =D11 -> 99.85777778 | H11: =$G$11+$D$13 -> 100.3706426
B12: 100.0422222 | C12: sd | D12: =STDEV('900_Sample'!C:C) -> 15.38594318 | F12: =$G$11-(2*$D$13) -> 98.83204823 | H12: =$G$11+(2*$D$13) -> 100.8835073
B13: 100.5355556 | C13: se | D13: =D12/(SQRT(COUNT('900_Sample'!B:B))) -> 0.5128647727 | F13: =$G$11-(3*$D$13) -> 98.31918346 | H13: =$G$11+(3*$D$13) -> 101.3963721
B14: 100.07
B15: 100.2911111
B16: 99.78444444
B17: 100.5422222
B18: 99.67444444
B19: 100.1366667
B20: 98.89555556
B21: 99.10222222
B22: 100.53
B23: 99.73666667
B24: 99.71222222
B25: 100.8277778
B26: 100.1422222
B27: 101.0188889
B28: 99.97444444
B29: 99.76111111
B30: 99.45
B31: 100.2511111
B32: 100.0211111
B33: 99.73555556
B34: 99.21888889
B35: 100.0444444
B36: 100.5533333
B37: 100.0222222
B38: 100.1111111
B39: 99.61666667
B40: 100.6388889
B41: 99.84444444
B42: 100.2388889
B43: 99.45
B44: 100.8755556
B45: 99.09777778
B46: 99.39333333
B47: 99.98
B48: 99.87555556
B49: 99.93444444
B50: 100.8011111
B51: 100.32
B52: 100.3411111
B53: 98.94
B54: 100.29
B55: 99.58111111
B56: 100.5066667
B57: 99.70444444
B58: 99.33777778
B59: 100.2133333
B60: 99.76666667
B61: 100.4611111
B62: 99.26
B63: 100.6866667
B64: 101.2555556
B65: 99.71777778
B66: 99.80666667
B67: 99.66222222
B68: 101.0422222
B69: 100.4322222
B70: 100.2988889
B71: 100.3777778
B72: 99.98222222
B73: 99.80666667
B74: 100.0444444
B75: 100.7511111
B76: 99.69888889
B77: 100.0833333
B78: 99.22777778
B79: 99.78222222
B80: 99.97666667
B81: 99.29111111
B82: 100.34
B83: 99.92666667
B84: 100.7633333
B85: 100.2355556
B86: 99.61666667
B87: 100.34
B88: 99.22222222
B89: 101.1311111
B90: 100.4466667
B91: 100.47
B92: 100.2188889
B93: 100.2188889
B94: 100.0711111
B95: 100.9444444
B96: 100.7755556
B97: 98.96444444
B98: 99.89444444
B99: 99.87666667
B100: 99.96555556
B101: 99.85777778

Sheet 1600_Sample
A1: ser | B1: Iqscore | C1: IQ
A2: 82521 | B2: 72.07393161 | C2: =ROUND(B2,0) -> 72
A3: 54750 | B3: 97.8370952 | C3: 98
A4: 41816 | B4: 98.67516286 | C4: 99
A5: 13108 | B5: 76.84264329 | C5: 77
A6: 70515 | B6: 108.7790939 | C6: 109
A7: 78195 | B7: 123.6274155 | C7: 124
A8: 34201 | B8: 71.67881854 | C8: 72
A9: 72794 | B9: 80.49003573 | C9: 80
A10: 5934 | B10: 101.8279687 | C10: 102
A11: 53507 | B11: 106.5702537 | C11: 107
A12: 88564 | B12: 103.3249373 | C12: 103
A13: 93811 | B13: 89.4376473 | C13: 89
A14: 15565 | B14: 107.5532498 | C14: 108
A15: 31570 | B15: 109.6698503 | C15: 110
A16: 58501 | B16: 113.7128733 | C16: 114
A17: 96622 | B17: 98.62458806 | C17: 99
A18: 94265 | B18: 83.47242242 | C18: 83
A19: 59070 | B19: 84.01969084 | C19: 84
A20: 10204 | B20: 81.62056341 | C20: 82
A21: 63901 | B21: 78.12974047 | C21: 78
A22: 50265 | B22: 76.51118397 | C22: 77
A23: 42557 | B23: 110.8282775 | C23: 111
A24: 30276 | B24: 107.1536183 | C24: 107
A25: 17088 | B25: 100.1805543 | C25: 100
A26: 75493 | B26: 94.89237534 | C26: 95
A27: 37505 | B27: 111.3864764 | C27: 111
A28: 58542 | B28: 104.7347334 | C28: 105
A29: 17959 | B29: 110.4453818 | C29: 110
A30: 40875 | B30: 86.02732183 | C30: 86
A31: 62377 | B31: 102.934572 | C31: 103
A32: 45863 | B32: 128.7088712 | C32: 129
A33: 95179 | B33: 73.61132022 | C33: 74
A34: 16659 | B34: 97.48541835 | C34: 97
A35: 37688 | B35: 117.4124667 | C35: 117
A36: 36948 | B36: 69.96310988 | C36: 70
A37: 95876 | B37: 98.15972467 | C37: 98
A38: 17717 | B38: 92.56094536 | C38: 93
A39: 50064 | B39: 79.71538187 | C39: 80
A40: 78164 | B40: 100.3668311 | C40: 100
A41: 62194 | B41: 90.13551264 | C41: 90
A42: 73867 | B42: 95.52472207 | C42: 96
A43: 41309 | B43: 109.2572435 | C43: 109
A44: 50353 | B44: 101.3255785 | C44: 101
A45: 32860 | B45: 107.3182311 | C45: 107
A46: 25176 | B46: 99.55085065 | C46: 100
A47: 22464 | B47: 107.5645945 | C47: 108
A48: 26640 | B48: 109.3057472 | C48: 109
A49: 69744 | B49: 94.26443635 | C49: 94
A50: 42282 | B50: 110.5975271 | C50: 111
A51: 12870 | B51: 92.65313075 | C51: 93
A52: 55251 | B52: 104.4032952 | C52: 104
A53: 9426 | B53: 92.75281433 | C53: 93
A54: 71699 | B54: 103.9426985 | C54: 104
A55: 4233 | B55: 91.37990264 | C55: 91
A56: 67318 | B56: 127.4278495 | C56: 127
A57: 39752 | B57: 77.61772008 | C57: 78
A58: 6133 | B58: 97.0860682 | C58: 97
A59: 49685 | B59: 109.2957999 | C59: 109
A60: 9698 | B60: 83.68092148 | C60: 84
A61: 1404 | B61: 96.78432431 | C61: 97
A62: 79795 | B62: 92.92977788 | C62: 93
A63: 77844 | B63: 93.66134442 | C63: 94
A64: 2784 | B64: 94.15198355 | C64: 94
A65: 14456 | B65: 98.39685822 | C65: 98
A66: 88712 | B66: 106.4110099 | C66: =ROUND(B66,0) -> 106
A67: 31881 | B67: 86.87761746 | C67: 87
A68: 23315 | B68: 87.45992917 | C68: 87
A69: 29939 | B69: 81.67158151 | C69: 82
A70: 36038 | B70: 88.64184927 | C70: 89
A71: 33579 | B71: 119.8187385 | C71: 120
A72: 12190 | B72: 88.55756374 | C72: 89
A73: 6404 | B73: 53.36691037 | C73: 53
A74: 2371 | B74: 124.9983344 | C74: 125
A75: 72398 | B75: 87.70890233 | C75: 88
A76: 7283 | B76: 90.32822356 | C76: 90
A77: 11484 | B77: 81.30752682 | C77: 81
A78: 41062 | B78: 76.22324439 | C78: 76
A79: 19534 | B79: 112.042456 | C79: 112
A80: 1249 | B80: 107.8543696 | C80: 108
A81: 48457 | B81: 97.84539642 | C81: 98
A82: 98527 | B82: 117.4635276 | C82: 117
A83: 66987 | B83: 91.14061237 | C83: 91
A84: 24345 | B84: 85.2488568 | C84: 85
A85: 7807 | B85: 116.6550285 | C85: 117
A86: 59563 | B86: 113.9556886 | C86: 114
A87: 91617 | B87: 92.24750959 | C87: 92
A88: 52235 | B88: 68.43189441 | C88: 68
A89: 43789 | B89: 78.58177645 | C89: 79
A90: 17658 | B90: 97.36332329 | C90: 97
A91: 44213 | B91: 82.79265689 | C91: 83
A92: 38808 | B92: 86.92463295 | C92: 87
A93: 75988 | B93: 118.7421806 | C93: 119
A94: 70302 | B94: 104.3972737 | C94: 104
A95: 63550 | B95: 116.1306185 | C95: 116
A96: 73987 | B96: 98.22793212 | C96: 98
A97: 15886 | B97: 80.68613499 | C97: 81
A98: 39305 | B98: 115.6355721 | C98: 116
A99: 15453 | B99: 88.69987777 | C99: 89
A100: 66543 | B100: 98.64180399 | C100: 99
A101: 18420 | B101: 112.8760088 | C101: 113
A102: 16102 | B102: 74.1674926 | C102: 74
A103: 56864 | B103: 102.857375 | C103: 103
A104: 51905 | B104: 112.5453052 | C104: 113
A105: 58548 | B105: 88.26307154 | C105: 88
A106: 32072 | B106: 86.84553277 | C106: 87
A107: 24897 | B107: 76.20474061 | C107: 76
A108: 24979 | B108: 126.4354072 | C108: 126
A109: 32808 | B109: 87.27303728 | C109: 87
A110: 53846 | B110: 95.26335616 | C110: 95
A111: 50906 | B111: 87.719107 | C111: 88
A112: 97952 | B112: 97.36175013 | C112: 97
A113: 85885 | B113: 100.1860376 | C113: 100
A114: 3624 | B114: 92.02543378 | C114: 92
A115: 99546 | B115: 100.2585531 | C115: 100
A116: 83112 | B116: 134.950863 | C116: 135
A117: 62170 | B117: 94.2523983 | C117: 94
A118: 4483 | B118: 117.0513184 | C118: 117
A119: 32835 | B119: 85.31433155 | C119: 85
A120: 654 | B120: 94.34001758 | C120: 94
A121: 82322 | B121: 105.1441956 | C121: 105
A122: 50691 | B122: 74.13270371 | C122: 74
A123: 99215 | B123: 110.8973184 | C123: 111
A124: 11498 | B124: 117.7592762 | C124: 118
A125: 44834 | B125: 120.0963308 | C125: 120
A126: 3021 | B126: 73.1502392 | C126: 73
A127: 47620 | B127: 102.4106178 | C127: 102
A128: 75098 | B128: 83.26995699 | C128: 83
A129: 52594 | B129: 93.46302421 | C129: 93
A130: 9063 | B130: 96.07962505 | C130: =ROUND(B130,0) -> 96
A131: 66531 | B131: 81.05887621 | C131: 81
A132: 32256 | B132: 115.5778843 | C132: 116
A133: 64445 | B133: 96.85276224 | C133: 97
A134: 48534 | B134: 118.5016227 | C134: 119
A135: 48045 | B135: 107.4150484 | C135: 107
A136: 12934 | B136: 93.77615683 | C136: 94
A137: 71751 | B137: 97.19758894 | C137: 97
A138: 3594 | B138: 88.05547897 | C138: 88
A139: 76933 | B139: 101.9261234 | C139: 102
A140: 69067 | B140: 142.3579719 | C140: 142
A141: 99958 | B141: 99.30753557 | C141: 99
A142: 54155 | B142: 111.3113948 | C142: 111
A143: 44705 | B143: 90.4509125 | C143: 90
A144: 32376 | B144: 107.7472241 | C144: 108
A145: 35154 | B145: 105.2288594 | C145: 105
A146: 98199 | B146: 105.0968985 | C146: 105
A147: 88673 | B147: 108.9746691 | C147: 109
A148: 97177 | B148: 106.0308382 | C148: 106
A149: 75639 | B149: 114.0684959 | C149: 114
A150: 97083 | B150: 101.791612 | C150: 102
A151: 56010 | B151: 115.4382063 | C151: 115
A152: 28199 | B152: 94.09729066 | C152: 94
A153: 8477 | B153: 61.48799175 | C153: 61
A154: 45858 | B154: 91.97879167 | C154: 92
A155: 92816 | B155: 90.06785839 | C155: 90
A156: 93391 | B156: 110.979997 | C156: 111
A157: 11068 | B157: 86.38155009 | C157: 86
A158: 68577 | B158: 94.96010384 | C158: 95
A159: 58179 | B159: 81.17751891 | C159: 81
A160: 21740 | B160: 116.4615162 | C160: 116
A161: 77706 | B161: 92.89405718 | C161: 93
A162: 38611 | B162: 104.4046165 | C162: 104
A163: 63238 | B163: 123.8336878 | C163: 124
A164: 86079 | B164: 100.5934344 | C164: 101
A165: 71140 | B165: 112.0232877 | C165: 112
A166: 23959 | B166: 87.74302699 | C166: 88
A167: 35246 | B167: 102.0911064 | C167: 102
A168: 10901 | B168: 69.87063708 | C168: 70
A169: 99140 | B169: 103.8470802 | C169: 104
A170: 57562 | B170: 105.4055368 | C170: 105
A171: 6630 | B171: 72.85816914 | C171: 73
A172: 5172 | B172: 102.6377323 | C172: 103
A173: 16057 | B173: 93.8682145 | C173: 94
A174: 32614 | B174: 115.5330382 | C174: 116
A175: 29056 | B175: 99.51799836 | C175: 100
A176: 20144 | B176: 101.9338951 | C176: 102
A177: 49389 | B177: 95.94774093 | C177: 96
A178: 22877 | B178: 87.60108744 | C178: 88
A179: 12492 | B179: 105.0486926 | C179: 105
A180: 32165 | B180: 104.8432472 | C180: 105
A181: 51339 | B181: 108.4077011 | C181: 108
A182: 27989 | B182: 101.188451 | C182: 101
A183: 89268 | B183: 68.32213728 | C183: 68
A184: 50494 | B184: 79.46945352 | C184: 79
A185: 75379 | B185: 83.12400252 | C185: 83
A186: 43784 | B186: 114.6017864 | C186: 115
A187: 3140 | B187: 85.83614205 | C187: 86
A188: 50113 | B188: 118.2572666 | C188: 118
A189: 77815 | B189: 99.88302197 | C189: 100
A190: 57595 | B190: 80.14062946 | C190: 80
A191: 23352 | B191: 95.43141189 | C191: 95
A192: 29540 | B192: 93.14683819 | C192: 93
A193: 44346 | B193: 110.9891622 | C193: 111
A194: 68574 | B194: 96.23022781 | C194: =ROUND(B194,0) -> 96
A195: 83700 | B195: 91.23466457 | C195: 91
A196: 93638 | B196: 133.9659493 | C196: 134
A197: 41628 | B197: 92.23570781 | C197: 92
A198: 33002 | B198: 118.3262079 | C198: 118
A199: 46592 | B199: 90.92105526 | C199: 91
A200: 61431 | B200: 86.62665167 | C200: 87
... 1401 more rows

Sheet 1600_Means
A1: Mean | B1: Means
A2: =AVERAGE('1600_Sample'!C:C) -> 99.59 | B2: 99.95625 | C2: =AVERAGE(B:B) -> 100.0511875 | D2: mean
B3: 100.616875 | C3: =MAX(B:B) -> 101.129375 | D3: max
B4: 99.754375 | C4: =MIN(B:B) -> 99.053125 | D4: min
B5: 99.36375 | C5: =C3-C4 -> 2.07625 | D5: range
B6: 100.101875 | C6: =STDEV(B:B) -> 0.4006074883 | D6: SD
B7: 99.674375 | C7: =VAR(B:B) -> 0.1604863597 | D7: variance
B8: 100.434375
B9: 99.87375
B10: 100.5875
B11: 99.849375 | C11: mean | D11: =B101 -> 99.59 | F11: =$G$11-$D$13 -> 99.21792781 | G11: =D11 -> 99.59 | H11: =$G$11+$D$13 -> 99.96207219
B12: 100.1525 | C12: sd | D12: =STDEV('1600_Sample'!C:C) -> 14.88288741 | F12: =$G$11-(2*$D$13) -> 98.84585563 | H12: =$G$11+(2*$D$13) -> 100.3341444
B13: 100.248125 | C13: se | D13: =D12/(SQRT(COUNT('1600_Sample'!B:B))) -> 0.3720721853 | F13: =$G$11-(3*$D$13) -> 98.47378344 | H13: =$G$11+(3*$D$13) -> 100.7062166
B14: 100.03125
B15: 99.88375
B16: 99.47125
B17: 99.788125
B18: 99.5
B19: 99.8875
B20: 100.741875
B21: 100.151875
B22: 100.57125
B23: 100.66
B24: 99.73875
B25: 99.72125
B26: 100.775
B27: 100.205625
B28: 99.796875
B29: 99.985
B30: 100.471875
B31: 99.636875
B32: 100.38875
B33: 99.88125
B34: 100.359375
B35: 100.506875
B36: 99.7975
B37: 100.07125
B38: 99.941875
B39: 99.85125
B40: 100.194375
B41: 99.9775
B42: 100.075625
B43: 100.276875
B44: 100.04
B45: 100.089375
B46: 100.661875
B47: 99.9275
B48: 101.129375
B49: 100.570625
B50: 100.133125
B51: 100.23875
B52: 100.0675
B53: 99.774375
B54: 100.174375
B55: 100.015625
B56: 100.1525
B57: 99.5525
B58: 100.34875
B59: 100.365625
B60: 100.11
B61: 100.574375
B62: 99.965
B63: 99.91625
B64: 100.67875
B65: 99.053125
B66: 100.164375
B67: 99.583125
B68: 99.539375
B69: 100.1575
B70: 100.150625
B71: 99.723125
B72: 100.2875
B73: 100.333125
B74: 99.298125
B75: 99.588125
B76: 100.5025
B77: 100.07625
B78: 100.328125
B79: 100.8475
B80: 100.24375
B81: 99.60625
B82: 99.108125
B83: 99.921875
B84: 100.0825
B85: 99.23375
B86: 100.4375
B87: 100.125
B88: 99.765
B89: 100.26625
B90: 99.94875
B91: 99.085
B92: 100.14375
B93: 100.051875
B94: 99.978125
B95: 100.21375
B96: 100.523125
B97: 99.429375
B98: 99.809375
B99: 100.319375
B100: 100.16375
B101: 99.59

Sheet Histogram
A2: 2
B3: 계급 | C3: 빈도수
B4: 74.5 | C4: 1
B5: 79.65 | C5: 3
B6: 84.8 | C6: 6
B7: 89.95 | C7: 6
B8: 95.1 | C8: 15
B9: 100.25 | C9: 17
B10: 105.4 | C10: 20
B11: 110.55 | C11: 15
B12: 115.7 | C12: 11
B13: 120.85 | C13: 2
B14: 기타 | C14: 4
A17: 4
B18: 계급 | C18: 빈도수
B19: 78.75 | C19: 1
B20: 83.15 | C20: 1
B21: 87.55 | C21: 5
B22: 91.95 | C22: 9
B23: 96.35 | C23: 22
B24: 100.75 | C24: 18
B25: 105.15 | C25: 16
B26: 109.55 | C26: 17
B27: 113.95 | C27: 5
B28: 118.35 | C28: 4
B29: 기타 | C29: 2
A31: 16
B32: 계급 | C32: 빈도수
B33: 91.375 | C33: 1
B34: 93.075 | C34: 2
B35: 94.775 | C35: 3
B36: 96.475 | C36: 12
B37: 98.175 | C37: 12
B38: 99.875 | C38: 15
B39: 101.575 | C39: 26
B40: 103.275 | C40: 12
B41: 104.975 | C41: 9
B42: 106.675 | C42: 2
B43: 기타 | C43: 6
A45: 25
B46: 계급 | C46: 빈도수
B47: 92.28 | C47: 1
B48: 94.048 | C48: 4
B49: 95.816 | C49: 7
B50: 97.584 | C50: 10
B51: 99.352 | C51: 14
B52: 101.12 | C52: 20
B53: 102.888 | C53: 19
B54: 104.656 | C54: 12
B55: 106.424 | C55: 7
B56: 108.192 | C56: 5
B57: 기타 | C57: 1
A59: 100
B60: 계급 | C60: 빈도수
B61: 96.79 | C61: 1
B62: 97.474 | C62: 1
B63: 98.158 | C63: 5
B64: 98.842 | C64: 9
B65: 99.526 | C65: 19
B66: 100.21 | C66: 15
B67: 100.894 | C67: 19
B68: 101.578 | C68: 8
B69: 102.262 | C69: 15
B70: 102.946 | C70: 4
B71: 기타 | C71: 4
A73: 400
B74: 계급 | C74: 빈도수
B75: 98.275 | C75: 1
B76: 98.6105 | C76: 1
B77: 98.946 | C77: 6
B78: 99.2815 | C78: 9
B79: 99.617 | C79: 15
B80: 99.9525 | C80: 15
B81: 100.288 | C81: 20
B82: 100.6235 | C82: 15
B83: 100.959 | C83: 11
B84: 101.2945 | C84: 6
B85: 기타 | C85: 1

Sheet SampleNdata
A1: ser | B1: n=2 | C1: n=4 | D1: n=16 | E1: n=25 | F1: n=100 | G1: n=400 | H1: n=900 | I1: n=1600
A2: 1 | B2: ='2_Means'!$B2 -> 126 | C2: ='4_Means'!$B2 -> 107.75 | D2: ='16_Means'!$B2 -> 100.6875 | E2: ='25_Means'!$B2 -> 101.4 | F2: ='100_Means'!$B2 -> 98.7 | G2: ='400_Means'!$B2 -> 101.23 | H2: ='900_Means'!$B2 -> 100.5355556 | I2: ='1600_Means'!$B2 -> 99.95625 | L2: 계급 | M2: 빈도수
A3: 2 | B3: ='2_Means'!$B3 -> 114.5 | C3: ='4_Means'!$B3 -> 100.25 | D3: ='16_Means'!$B3 -> 100.5625 | E3: ='25_Means'!$B3 -> 97.08 | F3: ='100_Means'!$B3 -> 102.13 | G3: ='400_Means'!$B3 -> 101.08 | H3: ='900_Means'!$B3 -> 100.0988889 | I3: ='1600_Means'!$B3 -> 100.616875 | L3: 74.5 | M3: 1
A4: 3 | B4: ='2_Means'!$B4 -> 103.5 | C4: ='4_Means'!$B4 -> 99.75 | D4: ='16_Means'!$B4 -> 96.0625 | E4: ='25_Means'!$B4 -> 95.8 | F4: ='100_Means'!$B4 -> 101.79 | G4: ='400_Means'!$B4 -> 99.445 | H4: ='900_Means'!$B4 -> 100.5544444 | I4: ='1600_Means'!$B4 -> 99.754375 | L4: 79.65 | M4: 3
A5: 4 | B5: ='2_Means'!$B5 -> 125.5 | C5: ='4_Means'!$B5 -> 94.5 | D5: ='16_Means'!$B5 -> 97.25 | E5: ='25_Means'!$B5 -> 102.16 | F5: ='100_Means'!$B5 -> 100.47 | G5: ='400_Means'!$B5 -> 100.6175 | H5: ='900_Means'!$B5 -> 99.28444444 | I5: ='1600_Means'!$B5 -> 99.36375 | L5: 84.8 | M5: 6
A6: 5 | B6: ='2_Means'!$B6 -> 104 | C6: ='4_Means'!$B6 -> 98.5 | D6: ='16_Means'!$B6 -> 97.4375 | E6: ='25_Means'!$B6 -> 97.76 | F6: ='100_Means'!$B6 -> 99.52 | G6: ='400_Means'!$B6 -> 100.3775 | H6: ='900_Means'!$B6 -> 100.0511111 | I6: ='1600_Means'!$B6 -> 100.101875 | L6: 89.95 | M6: 6
A7: 6 | B7: ='2_Means'!$B7 -> 106.5 | C7: ='4_Means'!$B7 -> 91.25 | D7: ='16_Means'!$B7 -> 97.5 | E7: ='25_Means'!$B7 -> 99.16 | F7: ='100_Means'!$B7 -> 100.55 | G7: ='400_Means'!$B7 -> 99.0525 | H7: ='900_Means'!$B7 -> 100.7844444 | I7: ='1600_Means'!$B7 -> 99.674375 | L7: 95.1 | M7: 15
A8: 7 | B8: ='2_Means'!$B8 -> 95.5 | C8: ='4_Means'!$B8 -> 108.5 | D8: ='16_Means'!$B8 -> 98.9375 | E8: ='25_Means'!$B8 -> 102.76 | F8: ='100_Means'!$B8 -> 99.25 | G8: ='400_Means'!$B8 -> 99.1575 | H8: ='900_Means'!$B8 -> 99.95111111 | I8: ='1600_Means'!$B8 -> 100.434375 | L8: 100.25 | M8: 17
A9: 8 | B9: ='2_Means'!$B9 -> 102.5 | C9: ='4_Means'!$B9 -> 108.25 | D9: ='16_Means'!$B9 -> 100.3125 | E9: ='25_Means'!$B9 -> 99.8 | F9: ='100_Means'!$B9 -> 97.48 | G9: ='400_Means'!$B9 -> 100.1425 | H9: ='900_Means'!$B9 -> 99.94 | I9: ='1600_Means'!$B9 -> 99.87375 | L9: 105.4 | M9: 20
A10: 9 | B10: ='2_Means'!$B10 -> 83.5 | C10: ='4_Means'!$B10 -> 104.5 | D10: ='16_Means'!$B10 -> 95.375 | E10: ='25_Means'!$B10 -> 99.36 | F10: ='100_Means'!$B10 -> 101 | G10: ='400_Means'!$B10 -> 100.175 | H10: ='900_Means'!$B10 -> 99.87333333 | I10: ='1600_Means'!$B10 -> 100.5875 | L10: 110.55 | M10: 15
A11: 10 | B11: ='2_Means'!$B11 -> 105 | C11: ='4_Means'!$B11 -> 108.5 | D11: ='16_Means'!$B11 -> 95.875 | E11: ='25_Means'!$B11 -> 107.4 | F11: ='100_Means'!$B11 -> 100.78 | G11: ='400_Means'!$B11 -> 100.7975 | H11: ='900_Means'!$B11 -> 100.3788889 | I11: ='1600_Means'!$B11 -> 99.849375 | L11: 115.7 | M11: 11
A12: 11 | B12: ='2_Means'!$B12 -> 96 | C12: ='4_Means'!$B12 -> 94.25 | D12: ='16_Means'!$B12 -> 106.8125 | E12: ='25_Means'!$B12 -> 99.52 | F12: ='100_Means'!$B12 -> 100.2 | G12: ='400_Means'!$B12 -> 99.3225 | H12: ='900_Means'!$B12 -> 100.0422222 | I12: ='1600_Means'!$B12 -> 100.1525 | L12: 120.85 | M12: 2
A13: 12 | B13: ='2_Means'!$B13 -> 99.5 | C13: ='4_Means'!$B13 -> 106.75 | D13: ='16_Means'!$B13 -> 99.9375 | E13: ='25_Means'!$B13 -> 103.52 | F13: ='100_Means'!$B13 -> 99.59 | G13: ='400_Means'!$B13 -> 100.5075 | H13: ='900_Means'!$B13 -> 100.5355556 | I13: ='1600_Means'!$B13 -> 100.248125 | L13: 기타 | M13: 4
A14: 13 | B14: ='2_Means'!$B14 -> 111 | C14: ='4_Means'!$B14 -> 105.5 | D14: ='16_Means'!$B14 -> 95.5625 | E14: ='25_Means'!$B14 -> 99.68 | F14: ='100_Means'!$B14 -> 102.89 | G14: ='400_Means'!$B14 -> 99.435 | H14: ='900_Means'!$B14 -> 100.07 | I14: ='1600_Means'!$B14 -> 100.03125
A15: 14 | B15: ='2_Means'!$B15 -> 97.5 | C15: ='4_Means'!$B15 -> 95.5 | D15: ='16_Means'!$B15 -> 100.3125 | E15: ='25_Means'!$B15 -> 99.36 | F15: ='100_Means'!$B15 -> 102.08 | G15: ='400_Means'!$B15 -> 100.805 | H15: ='900_Means'!$B15 -> 100.2911111 | I15: ='1600_Means'!$B15 -> 99.88375 | L15: 계급 | M15: 빈도수
A16: 15 | B16: ='2_Means'!$B16 -> 94 | C16: ='4_Means'!$B16 -> 99 | D16: ='16_Means'!$B16 -> 97.875 | E16: ='25_Means'!$B16 -> 95.96 | F16: ='100_Means'!$B16 -> 102.47 | G16: ='400_Means'!$B16 -> 100.12 | H16: ='900_Means'!$B16 -> 99.78444444 | I16: ='1600_Means'!$B16 -> 99.47125 | L16: 78.75 | M16: 1
A17: 16 | B17: ='2_Means'!$B17 -> 100 | C17: ='4_Means'!$B17 -> 106 | D17: ='16_Means'!$B17 -> 101.4375 | E17: ='25_Means'!$B17 -> 97.76 | F17: ='100_Means'!$B17 -> 100.64 | G17: ='400_Means'!$B17 -> 98.8575 | H17: ='900_Means'!$B17 -> 100.5422222 | I17: ='1600_Means'!$B17 -> 99.788125 | L17: 83.15 | M17: 1
A18: 17 | B18: ='2_Means'!$B18 -> 114.5 | C18: ='4_Means'!$B18 -> 99.5 | D18: ='16_Means'!$B18 -> 103.4375 | E18: ='25_Means'!$B18 -> 97.08 | F18: ='100_Means'!$B18 -> 99.96 | G18: ='400_Means'!$B18 -> 100.1175 | H18: ='900_Means'!$B18 -> 99.67444444 | I18: ='1600_Means'!$B18 -> 99.5 | L18: 87.55 | M18: 5
A19: 18 | B19: ='2_Means'!$B19 -> 113 | C19: ='4_Means'!$B19 -> 89.75 | D19: ='16_Means'!$B19 -> 99.3125 | E19: ='25_Means'!$B19 -> 101.24 | F19: ='100_Means'!$B19 -> 99.34 | G19: ='400_Means'!$B19 -> 100.5725 | H19: ='900_Means'!$B19 -> 100.1366667 | I19: ='1600_Means'!$B19 -> 99.8875 | L19: 91.95 | M19: 9
A20: 19 | B20: ='2_Means'!$B20 -> 117 | C20: ='4_Means'!$B20 -> 91.75 | D20: ='16_Means'!$B20 -> 103.25 | E20: ='25_Means'!$B20 -> 97.48 | F20: ='100_Means'!$B20 -> 100.48 | G20: ='400_Means'!$B20 -> 100.52 | H20: ='900_Means'!$B20 -> 98.89555556 | I20: ='1600_Means'!$B20 -> 100.741875 | L20: 96.35 | M20: 22
A21: 20 | B21: ='2_Means'!$B21 -> 107.5 | C21: ='4_Means'!$B21 -> 88 | D21: ='16_Means'!$B21 -> 94.5625 | E21: ='25_Means'!$B21 -> 102.64 | F21: ='100_Means'!$B21 -> 99.68 | G21: ='400_Means'!$B21 -> 99.1525 | H21: ='900_Means'!$B21 -> 99.10222222 | I21: ='1600_Means'!$B21 -> 100.151875 | L21: 100.75 | M21: 18
A22: 21 | B22: ='2_Means'!$B22 -> 107.5 | C22: ='4_Means'!$B22 -> 108 | D22: ='16_Means'!$B22 -> 91.375 | E22: ='25_Means'!$B22 -> 100.2 | F22: ='100_Means'!$B22 -> 99.56 | G22: ='400_Means'!$B22 -> 99.385 | H22: ='900_Means'!$B22 -> 100.53 | I22: ='1600_Means'!$B22 -> 100.57125 | L22: 105.15 | M22: 16
A23: 22 | B23: ='2_Means'!$B23 -> 105.5 | C23: ='4_Means'!$B23 -> 104.5 | D23: ='16_Means'!$B23 -> 104.375 | E23: ='25_Means'!$B23 -> 100.28 | F23: ='100_Means'!$B23 -> 97.49 | G23: ='400_Means'!$B23 -> 100.275 | H23: ='900_Means'!$B23 -> 99.73666667 | I23: ='1600_Means'!$B23 -> 100.66 | L23: 109.55 | M23: 17
A24: 23 | B24: ='2_Means'!$B24 -> 90.5 | C24: ='4_Means'!$B24 -> 114.25 | D24: ='16_Means'!$B24 -> 102.125 | E24: ='25_Means'!$B24 -> 96.12 | F24: ='100_Means'!$B24 -> 100.95 | G24: ='400_Means'!$B24 -> 98.7075 | H24: ='900_Means'!$B24 -> 99.71222222 | I24: ='1600_Means'!$B24 -> 99.73875 | L24: 113.95 | M24: 5
A25: 24 | B25: ='2_Means'!$B25 -> 84 | C25: ='4_Means'!$B25 -> 109.75 | D25: ='16_Means'!$B25 -> 107.1875 | E25: ='25_Means'!$B25 -> 97.52 | F25: ='100_Means'!$B25 -> 102.22 | G25: ='400_Means'!$B25 -> 101.1975 | H25: ='900_Means'!$B25 -> 100.8277778 | I25: ='1600_Means'!$B25 -> 99.72125 | L25: 118.35 | M25: 4
A26: 25 | B26: ='2_Means'!$B26 -> 74.5 | C26: ='4_Means'!$B26 -> 78.75 | D26: ='16_Means'!$B26 -> 100.75 | E26: ='25_Means'!$B26 -> 106.24 | F26: ='100_Means'!$B26 -> 99.08 | G26: ='400_Means'!$B26 -> 99.545 | H26: ='900_Means'!$B26 -> 100.1422222 | I26: ='1600_Means'!$B26 -> 100.775 | L26: 기타 | M26: 2
A27: 26 | B27: ='2_Means'!$B27 -> 98.5 | C27: ='4_Means'!$B27 -> 97.5 | D27: ='16_Means'!$B27 -> 100.625 | E27: ='25_Means'!$B27 -> 97.32 | F27: ='100_Means'!$B27 -> 99.46 | G27: ='400_Means'!$B27 -> 99.435 | H27: ='900_Means'!$B27 -> 101.0188889 | I27: ='1600_Means'!$B27 -> 100.205625
A28: 27 | B28: ='2_Means'!$B28 -> 94.5 | C28: ='4_Means'!$B28 -> 92 | D28: ='16_Means'!$B28 -> 102.9375 | E28: ='25_Means'!$B28 -> 101.2 | F28: ='100_Means'!$B28 -> 100.92 | G28: ='400_Means'!$B28 -> 99.6275 | H28: ='900_Means'!$B28 -> 99.97444444 | I28: ='1600_Means'!$B28 -> 99.796875 | L28: 계급 | M28: 빈도수
A29: 28 | B29: ='2_Means'!$B29 -> 125 | C29: ='4_Means'!$B29 -> 111.5 | D29: ='16_Means'!$B29 -> 95.375 | E29: ='25_Means'!$B29 -> 93.92 | F29: ='100_Means'!$B29 -> 101.46 | G29: ='400_Means'!$B29 -> 99.52 | H29: ='900_Means'!$B29 -> 99.76111111 | I29: ='1600_Means'!$B29 -> 99.985 | L29: 91.375 | M29: 1
A30: 29 | B30: ='2_Means'!$B30 -> 94 | C30: ='4_Means'!$B30 -> 97 | D30: ='16_Means'!$B30 -> 108.375 | E30: ='25_Means'!$B30 -> 103 | F30: ='100_Means'!$B30 -> 98.86 | G30: ='400_Means'!$B30 -> 101.63 | H30: ='900_Means'!$B30 -> 99.45 | I30: ='1600_Means'!$B30 -> 100.471875 | L30: 93.075 | M30: 2
A31: 30 | B31: ='2_Means'!$B31 -> 115 | C31: ='4_Means'!$B31 -> 91 | D31: ='16_Means'!$B31 -> 98.75 | E31: ='25_Means'!$B31 -> 102.72 | F31: ='100_Means'!$B31 -> 98.51 | G31: ='400_Means'!$B31 -> 100.795 | H31: ='900_Means'!$B31 -> 100.2511111 | I31: ='1600_Means'!$B31 -> 99.636875 | L31: 94.775 | M31: 3
A32: 31 | B32: ='2_Means'!$B32 -> 103.5 | C32: ='4_Means'!$B32 -> 94.5 | D32: ='16_Means'!$B32 -> 100.375 | E32: ='25_Means'!$B32 -> 95 | F32: ='100_Means'!$B32 -> 100.87 | G32: ='400_Means'!$B32 -> 99.805 | H32: ='900_Means'!$B32 -> 100.0211111 | I32: ='1600_Means'!$B32 -> 100.38875 | L32: 96.475 | M32: 12
A33: 32 | B33: ='2_Means'!$B33 -> 102.5 | C33: ='4_Means'!$B33 -> 103.25 | D33: ='16_Means'!$B33 -> 97.625 | E33: ='25_Means'!$B33 -> 99.36 | F33: ='100_Means'!$B33 -> 101.72 | G33: ='400_Means'!$B33 -> 100.275 | H33: ='900_Means'!$B33 -> 99.73555556 | I33: ='1600_Means'!$B33 -> 99.88125 | L33: 98.175 | M33: 12
A34: 33 | B34: ='2_Means'!$B34 -> 99 | C34: ='4_Means'!$B34 -> 106.25 | D34: ='16_Means'!$B34 -> 101.375 | E34: ='25_Means'!$B34 -> 105.44 | F34: ='100_Means'!$B34 -> 99.39 | G34: ='400_Means'!$B34 -> 100.1575 | H34: ='900_Means'!$B34 -> 99.21888889 | I34: ='1600_Means'!$B34 -> 100.359375 | L34: 99.875 | M34: 15
A35: 34 | B35: ='2_Means'!$B35 -> 105.5 | C35: ='4_Means'!$B35 -> 94.75 | D35: ='16_Means'!$B35 -> 99.5625 | E35: ='25_Means'!$B35 -> 101.24 | F35: ='100_Means'!$B35 -> 96.79 | G35: ='400_Means'!$B35 -> 100.68 | H35: ='900_Means'!$B35 -> 100.0444444 | I35: ='1600_Means'!$B35 -> 100.506875 | L35: 101.575 | M35: 26
A36: 35 | B36: ='2_Means'!$B36 -> 99.5 | C36: ='4_Means'!$B36 -> 111 | D36: ='16_Means'!$B36 -> 99.25 | E36: ='25_Means'!$B36 -> 107.72 | F36: ='100_Means'!$B36 -> 97.75 | G36: ='400_Means'!$B36 -> 100.005 | H36: ='900_Means'!$B36 -> 100.5533333 | I36: ='1600_Means'!$B36 -> 99.7975 | L36: 103.275 | M36: 12
A37: 36 | B37: ='2_Means'!$B37 -> 84.5 | C37: ='4_Means'!$B37 -> 91.5 | D37: ='16_Means'!$B37 -> 96.9375 | E37: ='25_Means'!$B37 -> 103.16 | F37: ='100_Means'!$B37 -> 98.19 | G37: ='400_Means'!$B37 -> 100.2925 | H37: ='900_Means'!$B37 -> 100.0222222 | I37: ='1600_Means'!$B37 -> 100.07125 | L37: 104.975 | M37: 9
A38: 37 | B38: ='2_Means'!$B38 -> 78.5 | C38: ='4_Means'!$B38 -> 94 | D38: ='16_Means'!$B38 -> 107.25 | E38: ='25_Means'!$B38 -> 104.12 | F38: ='100_Means'!$B38 -> 101 | G38: ='400_Means'!$B38 -> 100.645 | H38: ='900_Means'!$B38 -> 100.1111111 | I38: ='1600_Means'!$B38 -> 99.941875 | L38: 106.675 | M38: 2
A39: 38 | B39: ='2_Means'!$B39 -> 100.5 | C39: ='4_Means'!$B39 -> 95 | D39: ='16_Means'!$B39 -> 96.25 | E39: ='25_Means'!$B39 -> 98.56 | F39: ='100_Means'!$B39 -> 101.12 | G39: ='400_Means'!$B39 -> 99.94 | H39: ='900_Means'!$B39 -> 99.61666667 | I39: ='1600_Means'!$B39 -> 99.85125 | L39: 기타 | M39: 6
A40: 39 | B40: ='2_Means'!$B40 -> 102 | C40: ='4_Means'!$B40 -> 101.75 | D40: ='16_Means'!$B40 -> 95.3125 | E40: ='25_Means'!$B40 -> 100.44 | F40: ='100_Means'!$B40 -> 99.21 | G40: ='400_Means'!$B40 -> 99.875 | H40: ='900_Means'!$B40 -> 100.6388889 | I40: ='1600_Means'!$B40 -> 100.194375
A41: 40 | B41: ='2_Means'!$B41 -> 85 | C41: ='4_Means'!$B41 -> 93.5 | D41: ='16_Means'!$B41 -> 99.1875 | E41: ='25_Means'!$B41 -> 98.12 | F41: ='100_Means'!$B41 -> 100.22 | G41: ='400_Means'!$B41 -> 100.47 | H41: ='900_Means'!$B41 -> 99.84444444 | I41: ='1600_Means'!$B41 -> 99.9775 | L41: 계급 | M41: 빈도수
A42: 41 | B42: ='2_Means'!$B42 -> 88.5 | C42: ='4_Means'!$B42 -> 102 | D42: ='16_Means'!$B42 -> 96.1875 | E42: ='25_Means'!$B42 -> 104.28 | F42: ='100_Means'!$B42 -> 99.82 | G42: ='400_Means'!$B42 -> 100 | H42: ='900_Means'!$B42 -> 100.2388889 | I42: ='1600_Means'!$B42 -> 100.075625 | L42: 92.28 | M42: 1
A43: 42 | B43: ='2_Means'!$B43 -> 86.5 | C43: ='4_Means'!$B43 -> 84.75 | D43: ='16_Means'!$B43 -> 101.9375 | E43: ='25_Means'!$B43 -> 98.68 | F43: ='100_Means'!$B43 -> 102.06 | G43: ='400_Means'!$B43 -> 99.6275 | H43: ='900_Means'!$B43 -> 99.45 | I43: ='1600_Means'!$B43 -> 100.276875 | L43: 94.048 | M43: 4
A44: 43 | B44: ='2_Means'!$B44 -> 108 | C44: ='4_Means'!$B44 -> 106 | D44: ='16_Means'!$B44 -> 99.9375 | E44: ='25_Means'!$B44 -> 101.52 | F44: ='100_Means'!$B44 -> 100.38 | G44: ='400_Means'!$B44 -> 100.2075 | H44: ='900_Means'!$B44 -> 100.8755556 | I44: ='1600_Means'!$B44 -> 100.04 | L44: 95.816 | M44: 7
A45: 44 | B45: ='2_Means'!$B45 -> 91.5 | C45: ='4_Means'!$B45 -> 104.25 | D45: ='16_Means'!$B45 -> 99.625 | E45: ='25_Means'!$B45 -> 101.32 | F45: ='100_Means'!$B45 -> 96.93 | G45: ='400_Means'!$B45 -> 100.7 | H45: ='900_Means'!$B45 -> 99.09777778 | I45: ='1600_Means'!$B45 -> 100.089375 | L45: 97.584 | M45: 10
A46: 45 | B46: ='2_Means'!$B46 -> 95 | C46: ='4_Means'!$B46 -> 107.5 | D46: ='16_Means'!$B46 -> 103 | E46: ='25_Means'!$B46 -> 94.16 | F46: ='100_Means'!$B46 -> 100.57 | G46: ='400_Means'!$B46 -> 100.42 | H46: ='900_Means'!$B46 -> 99.39333333 | I46: ='1600_Means'!$B46 -> 100.661875 | L46: 99.352 | M46: 14
A47: 46 | B47: ='2_Means'!$B47 -> 96 | C47: ='4_Means'!$B47 -> 102.25 | D47: ='16_Means'!$B47 -> 96.375 | E47: ='25_Means'!$B47 -> 104.56 | F47: ='100_Means'!$B47 -> 100.81 | G47: ='400_Means'!$B47 -> 99.775 | H47: ='900_Means'!$B47 -> 99.98 | I47: ='1600_Means'!$B47 -> 99.9275 | L47: 101.12 | M47: 20
A48: 47 | B48: ='2_Means'!$B48 -> 90 | C48: ='4_Means'!$B48 -> 104.5 | D48: ='16_Means'!$B48 -> 104.375 | E48: ='25_Means'!$B48 -> 98 | F48: ='100_Means'!$B48 -> 100.16 | G48: ='400_Means'!$B48 -> 99.705 | H48: ='900_Means'!$B48 -> 99.87555556 | I48: ='1600_Means'!$B48 -> 101.129375 | L48: 102.888 | M48: 19
A49: 48 | B49: ='2_Means'!$B49 -> 90 | C49: ='4_Means'!$B49 -> 93 | D49: ='16_Means'!$B49 -> 98.4375 | E49: ='25_Means'!$B49 -> 97.64 | F49: ='100_Means'!$B49 -> 103.26 | G49: ='400_Means'!$B49 -> 98.73 | H49: ='900_Means'!$B49 -> 99.93444444 | I49: ='1600_Means'!$B49 -> 100.570625 | L49: 104.656 | M49: 12
A50: 49 | B50: ='2_Means'!$B50 -> 92.5 | C50: ='4_Means'!$B50 -> 118.25 | D50: ='16_Means'!$B50 -> 100.1875 | E50: ='25_Means'!$B50 -> 106.44 | F50: ='100_Means'!$B50 -> 102.51 | G50: ='400_Means'!$B50 -> 99.2575 | H50: ='900_Means'!$B50 -> 100.8011111 | I50: ='1600_Means'!$B50 -> 100.133125 | L50: 106.424 | M50: 7
A51: 50 | B51: ='2_Means'!$B51 -> 97.5 | C51: ='4_Means'!$B51 -> 102.25 | D51: ='16_Means'!$B51 -> 106.375 | E51: ='25_Means'!$B51 -> 107.48 | F51: ='100_Means'!$B51 -> 100.4 | G51: ='400_Means'!$B51 -> 98.72 | H51: ='900_Means'!$B51 -> 100.32 | I51: ='1600_Means'!$B51 -> 100.23875 | L51: 108.192 | M51: 5
A52: 51 | B52: ='2_Means'!$B52 -> 109.5 | C52: ='4_Means'!$B52 -> 86 | D52: ='16_Means'!$B52 -> 104.4375 | E52: ='25_Means'!$B52 -> 100.12 | F52: ='100_Means'!$B52 -> 100.63 | G52: ='400_Means'!$B52 -> 100.7325 | H52: ='900_Means'!$B52 -> 100.3411111 | I52: ='1600_Means'!$B52 -> 100.0675 | L52: 기타 | M52: 1
A53: 52 | B53: ='2_Means'!$B53 -> 102 | C53: ='4_Means'!$B53 -> 100 | D53: ='16_Means'!$B53 -> 101.125 | E53: ='25_Means'!$B53 -> 97.04 | F53: ='100_Means'!$B53 -> 100.33 | G53: ='400_Means'!$B53 -> 99.415 | H53: ='900_Means'!$B53 -> 98.94 | I53: ='1600_Means'!$B53 -> 99.774375
A54: 53 | B54: ='2_Means'!$B54 -> 107.5 | C54: ='4_Means'!$B54 -> 105.75 | D54: ='16_Means'!$B54 -> 100.6875 | E54: ='25_Means'!$B54 -> 100.8 | F54: ='100_Means'!$B54 -> 99 | G54: ='400_Means'!$B54 -> 100.3175 | H54: ='900_Means'!$B54 -> 100.29 | I54: ='1600_Means'!$B54 -> 100.174375 | L54: 계급 | M54: 빈도수
A55: 54 | B55: ='2_Means'!$B55 -> 94 | C55: ='4_Means'!$B55 -> 105.5 | D55: ='16_Means'!$B55 -> 102.5 | E55: ='25_Means'!$B55 -> 94.56 | F55: ='100_Means'!$B55 -> 97.58 | G55: ='400_Means'!$B55 -> 99.4975 | H55: ='900_Means'!$B55 -> 99.58111111 | I55: ='1600_Means'!$B55 -> 100.015625 | L55: 96.79 | M55: 1
A56: 55 | B56: ='2_Means'!$B56 -> 105.5 | C56: ='4_Means'!$B56 -> 103 | D56: ='16_Means'!$B56 -> 104.25 | E56: ='25_Means'!$B56 -> 104.8 | F56: ='100_Means'!$B56 -> 102.38 | G56: ='400_Means'!$B56 -> 99.955 | H56: ='900_Means'!$B56 -> 100.5066667 | I56: ='1600_Means'!$B56 -> 100.1525 | L56: 97.474 | M56: 1
A57: 56 | B57: ='2_Means'!$B57 -> 103 | C57: ='4_Means'!$B57 -> 121.25 | D57: ='16_Means'!$B57 -> 93.1875 | E57: ='25_Means'!$B57 -> 105.44 | F57: ='100_Means'!$B57 -> 100.21 | G57: ='400_Means'!$B57 -> 99.5925 | H57: ='900_Means'!$B57 -> 99.70444444 | I57: ='1600_Means'!$B57 -> 99.5525 | L57: 98.158 | M57: 5
A58: 57 | B58: ='2_Means'!$B58 -> 90.5 | C58: ='4_Means'!$B58 -> 100 | D58: ='16_Means'!$B58 -> 99.0625 | E58: ='25_Means'!$B58 -> 99.72 | F58: ='100_Means'!$B58 -> 101.8 | G58: ='400_Means'!$B58 -> 100.2925 | H58: ='900_Means'!$B58 -> 99.33777778 | I58: ='1600_Means'!$B58 -> 100.34875 | L58: 98.842 | M58: 9
A59: 58 | B59: ='2_Means'!$B59 -> 107 | C59: ='4_Means'!$B59 -> 110.75 | D59: ='16_Means'!$B59 -> 100.875 | E59: ='25_Means'!$B59 -> 104.12 | F59: ='100_Means'!$B59 -> 103.63 | G59: ='400_Means'!$B59 -> 99.8925 | H59: ='900_Means'!$B59 -> 100.2133333 | I59: ='1600_Means'!$B59 -> 100.365625 | L59: 99.526 | M59: 19
A60: 59 | B60: ='2_Means'!$B60 -> 103 | C60: ='4_Means'!$B60 -> 102.5 | D60: ='16_Means'!$B60 -> 103.4375 | E60: ='25_Means'!$B60 -> 99.32 | F60: ='100_Means'!$B60 -> 99.85 | G60: ='400_Means'!$B60 -> 98.6825 | H60: ='900_Means'!$B60 -> 99.76666667 | I60: ='1600_Means'!$B60 -> 100.11 | L60: 100.21 | M60: 15
A61: 60 | B61: ='2_Means'!$B61 -> 108 | C61: ='4_Means'!$B61 -> 122.75 | D61: ='16_Means'!$B61 -> 100 | E61: ='25_Means'!$B61 -> 99.32 | F61: ='100_Means'!$B61 -> 99.36 | G61: ='400_Means'!$B61 -> 100.775 | H61: ='900_Means'!$B61 -> 100.4611111 | I61: ='1600_Means'!$B61 -> 100.574375 | L61: 100.894 | M61: 19
A62: 61 | B62: ='2_Means'!$B62 -> 87.5 | C62: ='4_Means'!$B62 -> 81.25 | D62: ='16_Means'!$B62 -> 92.5625 | E62: ='25_Means'!$B62 -> 97.92 | F62: ='100_Means'!$B62 -> 99.83 | G62: ='400_Means'!$B62 -> 99.62 | H62: ='900_Means'!$B62 -> 99.26 | I62: ='1600_Means'!$B62 -> 99.965 | L62: 101.578 | M62: 8
A63: 62 | B63: ='2_Means'!$B63 -> 109.5 | C63: ='4_Means'!$B63 -> 99.75 | D63: ='16_Means'!$B63 -> 107.625 | E63: ='25_Means'!$B63 -> 101.8 | F63: ='100_Means'!$B63 -> 98.55 | G63: ='400_Means'!$B63 -> 101.0375 | H63: ='900_Means'!$B63 -> 100.6866667 | I63: ='1600_Means'!$B63 -> 99.91625 | L63: 102.262 | M63: 15
A64: 63 | B64: ='2_Means'!$B64 -> 115.5 | C64: ='4_Means'!$B64 -> 109.5 | D64: ='16_Means'!$B64 -> 103.125 | E64: ='25_Means'!$B64 -> 99.52 | F64: ='100_Means'!$B64 -> 99.47 | G64: ='400_Means'!$B64 -> 99.8175 | H64: ='900_Means'!$B64 -> 101.2555556 | I64: ='1600_Means'!$B64 -> 100.67875 | L64: 102.946 | M64: 4
A65: 64 | B65: ='2_Means'!$B65 -> 89 | C65: ='4_Means'!$B65 -> 101 | D65: ='16_Means'!$B65 -> 100.625 | E65: ='25_Means'!$B65 -> 103.12 | F65: ='100_Means'!$B65 -> 100.03 | G65: ='400_Means'!$B65 -> 100.395 | H65: ='900_Means'!$B65 -> 99.71777778 | I65: ='1600_Means'!$B65 -> 99.053125 | L65: 기타 | M65: 4
A66: 65 | B66: ='2_Means'!$B66 -> 81 | C66: ='4_Means'!$B66 -> 93.25 | D66: ='16_Means'!$B66 -> 101.5625 | E66: ='25_Means'!$B66 -> 106.56 | F66: ='100_Means'!$B66 -> 101.14 | G66: ='400_Means'!$B66 -> 100.0825 | H66: ='900_Means'!$B66 -> 99.80666667 | I66: ='1600_Means'!$B66 -> 100.164375
A67: 66 | B67: ='2_Means'!$B67 -> 76.5 | C67: ='4_Means'!$B67 -> 102 | D67: ='16_Means'!$B67 -> 95.4375 | E67: ='25_Means'!$B67 -> 92.6 | F67: ='100_Means'!$B67 -> 100.55 | G67: ='400_Means'!$B67 -> 100.0175 | H67: ='900_Means'!$B67 -> 99.66222222 | I67: ='1600_Means'!$B67 -> 99.583125
A68: 67 | B68: ='2_Means'!$B68 -> 91.5 | C68: ='4_Means'!$B68 -> 89 | D68: ='16_Means'!$B68 -> 100.9375 | E68: ='25_Means'!$B68 -> 102.44 | F68: ='100_Means'!$B68 -> 101.65 | G68: ='400_Means'!$B68 -> 100.3875 | H68: ='900_Means'!$B68 -> 101.0422222 | I68: ='1600_Means'!$B68 -> 99.539375
A69: 68 | B69: ='2_Means'!$B69 -> 106 | C69: ='4_Means'!$B69 -> 102.5 | D69: ='16_Means'!$B69 -> 99.625 | E69: ='25_Means'!$B69 -> 105.16 | F69: ='100_Means'!$B69 -> 99.45 | G69: ='400_Means'!$B69 -> 99.69 | H69: ='900_Means'!$B69 -> 100.4322222 | I69: ='1600_Means'!$B69 -> 100.1575
A70: 69 | B70: ='2_Means'!$B70 -> 97.5 | C70: ='4_Means'!$B70 -> 86.25 | D70: ='16_Means'!$B70 -> 98.9375 | E70: ='25_Means'!$B70 -> 101.4 | F70: ='100_Means'!$B70 -> 101.03 | G70: ='400_Means'!$B70 -> 99.9625 | H70: ='900_Means'!$B70 -> 100.2988889 | I70: ='1600_Means'!$B70 -> 100.150625 | L70: 계급 | M70: 빈도수
A71: 70 | B71: ='2_Means'!$B71 -> 101 | C71: ='4_Means'!$B71 -> 95 | D71: ='16_Means'!$B71 -> 92.9375 | E71: ='25_Means'!$B71 -> 104.96 | F71: ='100_Means'!$B71 -> 102.06 | G71: ='400_Means'!$B71 -> 100.23 | H71: ='900_Means'!$B71 -> 100.3777778 | I71: ='1600_Means'!$B71 -> 99.723125 | L71: 98.275 | M71: 1
A72: 71 | B72: ='2_Means'!$B72 -> 105 | C72: ='4_Means'!$B72 -> 115.25 | D72: ='16_Means'!$B72 -> 101.625 | E72: ='25_Means'!$B72 -> 97.84 | F72: ='100_Means'!$B72 -> 103.43 | G72: ='400_Means'!$B72 -> 98.98 | H72: ='900_Means'!$B72 -> 99.98222222 | I72: ='1600_Means'!$B72 -> 100.2875 | L72: 98.6105 | M72: 1
A73: 72 | B73: ='2_Means'!$B73 -> 111 | C73: ='4_Means'!$B73 -> 99.75 | D73: ='16_Means'!$B73 -> 100.75 | E73: ='25_Means'!$B73 -> 103.32 | F73: ='100_Means'!$B73 -> 100.49 | G73: ='400_Means'!$B73 -> 99.2075 | H73: ='900_Means'!$B73 -> 99.80666667 | I73: ='1600_Means'!$B73 -> 100.333125 | L73: 98.946 | M73: 6
A74: 73 | B74: ='2_Means'!$B74 -> 104 | C74: ='4_Means'!$B74 -> 109.25 | D74: ='16_Means'!$B74 -> 97.5 | E74: ='25_Means'!$B74 -> 101.4 | F74: ='100_Means'!$B74 -> 100.72 | G74: ='400_Means'!$B74 -> 100.55 | H74: ='900_Means'!$B74 -> 100.0444444 | I74: ='1600_Means'!$B74 -> 99.298125 | L74: 99.2815 | M74: 9
A75: 74 | B75: ='2_Means'!$B75 -> 99 | C75: ='4_Means'!$B75 -> 100.5 | D75: ='16_Means'!$B75 -> 100.625 | E75: ='25_Means'!$B75 -> 96.24 | F75: ='100_Means'!$B75 -> 100.83 | G75: ='400_Means'!$B75 -> 100.745 | H75: ='900_Means'!$B75 -> 100.7511111 | I75: ='1600_Means'!$B75 -> 99.588125 | L75: 99.617 | M75: 15
A76: 75 | B76: ='2_Means'!$B76 -> 83 | C76: ='4_Means'!$B76 -> 92 | D76: ='16_Means'!$B76 -> 96.625 | E76: ='25_Means'!$B76 -> 100.8 | F76: ='100_Means'!$B76 -> 101.63 | G76: ='400_Means'!$B76 -> 99.5975 | H76: ='900_Means'!$B76 -> 99.69888889 | I76: ='1600_Means'!$B76 -> 100.5025 | L76: 99.9525 | M76: 15
A77: 76 | B77: ='2_Means'!$B77 -> 109 | C77: ='4_Means'!$B77 -> 107 | D77: ='16_Means'!$B77 -> 100.5625 | E77: ='25_Means'!$B77 -> 101 | F77: ='100_Means'!$B77 -> 99.04 | G77: ='400_Means'!$B77 -> 99.7875 | H77: ='900_Means'!$B77 -> 100.0833333 | I77: ='1600_Means'!$B77 -> 100.07625 | L77: 100.288 | M77: 20
A78: 77 | B78: ='2_Means'!$B78 -> 112.5 | C78: ='4_Means'!$B78 -> 101.25 | D78: ='16_Means'!$B78 -> 103.8125 | E78: ='25_Means'!$B78 -> 103.56 | F78: ='100_Means'!$B78 -> 99.31 | G78: ='400_Means'!$B78 -> 98.5175 | H78: ='900_Means'!$B78 -> 99.22777778 | I78: ='1600_Means'!$B78 -> 100.328125 | L78: 100.6235 | M78: 15
A79: 78 | B79: ='2_Means'!$B79 -> 98 | C79: ='4_Means'!$B79 -> 108 | D79: ='16_Means'!$B79 -> 98.5625 | E79: ='25_Means'!$B79 -> 102.76 | F79: ='100_Means'!$B79 -> 97.58 | G79: ='400_Means'!$B79 -> 99.785 | H79: ='900_Means'!$B79 -> 99.78222222 | I79: ='1600_Means'!$B79 -> 100.8475 | L79: 100.959 | M79: 11
A80: 79 | B80: ='2_Means'!$B80 -> 93 | C80: ='4_Means'!$B80 -> 94.75 | D80: ='16_Means'!$B80 -> 103.5625 | E80: ='25_Means'!$B80 -> 100.12 | F80: ='100_Means'!$B80 -> 99.5 | G80: ='400_Means'!$B80 -> 100.07 | H80: ='900_Means'!$B80 -> 99.97666667 | I80: ='1600_Means'!$B80 -> 100.24375 | L80: 101.2945 | M80: 6
A81: 80 | B81: ='2_Means'!$B81 -> 94.5 | C81: ='4_Means'!$B81 -> 109.75 | D81: ='16_Means'!$B81 -> 101.3125 | E81: ='25_Means'!$B81 -> 109.96 | F81: ='100_Means'!$B81 -> 98.61 | G81: ='400_Means'!$B81 -> 100.2475 | H81: ='900_Means'!$B81 -> 99.29111111 | I81: ='1600_Means'!$B81 -> 99.60625 | L81: 기타 | M81: 1
A82: 81 | B82: ='2_Means'!$B82 -> 113.5 | C82: ='4_Means'!$B82 -> 94.75 | D82: ='16_Means'!$B82 -> 96.375 | E82: ='25_Means'!$B82 -> 104.28 | F82: ='100_Means'!$B82 -> 99.16 | G82: ='400_Means'!$B82 -> 99.785 | H82: ='900_Means'!$B82 -> 100.34 | I82: ='1600_Means'!$B82 -> 99.108125
A83: 82 | B83: ='2_Means'!$B83 -> 115 | C83: ='4_Means'!$B83 -> 97.75 | D83: ='16_Means'!$B83 -> 99.75 | E83: ='25_Means'!$B83 -> 102.88 | F83: ='100_Means'!$B83 -> 98.33 | G83: ='400_Means'!$B83 -> 99.995 | H83: ='900_Means'!$B83 -> 99.92666667 | I83: ='1600_Means'!$B83 -> 99.921875 | L83: 계급 | M83: 빈도수
A84: 83 | B84: ='2_Means'!$B84 -> 123.5 | C84: ='4_Means'!$B84 -> 93.5 | D84: ='16_Means'!$B84 -> 100.0625 | E84: ='25_Means'!$B84 -> 100.6 | F84: ='100_Means'!$B84 -> 100.28 | G84: ='400_Means'!$B84 -> 100.265 | H84: ='900_Means'!$B84 -> 100.7633333 | I84: ='1600_Means'!$B84 -> 100.0825 | L84: 98.89555556 | M84: 1
A85: 84 | B85: ='2_Means'!$B85 -> 110 | C85: ='4_Means'!$B85 -> 96 | D85: ='16_Means'!$B85 -> 93.75 | E85: ='25_Means'!$B85 -> 99.48 | F85: ='100_Means'!$B85 -> 103.52 | G85: ='400_Means'!$B85 -> 99.255 | H85: ='900_Means'!$B85 -> 100.2355556 | I85: ='1600_Means'!$B85 -> 99.23375 | L85: 99.13155556 | M85: 4
A86: 85 | B86: ='2_Means'!$B86 -> 104.5 | C86: ='4_Means'!$B86 -> 86 | D86: ='16_Means'!$B86 -> 102.125 | E86: ='25_Means'!$B86 -> 92.52 | F86: ='100_Means'!$B86 -> 99.71 | G86: ='400_Means'!$B86 -> 99.1 | H86: ='900_Means'!$B86 -> 99.61666667 | I86: ='1600_Means'!$B86 -> 100.4375 | L86: 99.36755556 | M86: 7
A87: 86 | B87: ='2_Means'!$B87 -> 98.5 | C87: ='4_Means'!$B87 -> 83.75 | D87: ='16_Means'!$B87 -> 98 | E87: ='25_Means'!$B87 -> 102.36 | F87: ='100_Means'!$B87 -> 99.25 | G87: ='400_Means'!$B87 -> 99.5225 | H87: ='900_Means'!$B87 -> 100.34 | I87: ='1600_Means'!$B87 -> 100.125 | L87: 99.60355556 | M87: 4
A88: 87 | B88: ='2_Means'!$B88 -> 80.5 | C88: ='4_Means'!$B88 -> 100.25 | D88: ='16_Means'!$B88 -> 97 | E88: ='25_Means'!$B88 -> 96.12 | F88: ='100_Means'!$B88 -> 100.43 | G88: ='400_Means'!$B88 -> 100.8 | H88: ='900_Means'!$B88 -> 99.22222222 | I88: ='1600_Means'!$B88 -> 99.765 | L88: 99.83955556 | M88: 16
A89: 88 | B89: ='2_Means'!$B89 -> 89.5 | C89: ='4_Means'!$B89 -> 98 | D89: ='16_Means'!$B89 -> 96.5 | E89: ='25_Means'!$B89 -> 98.4 | F89: ='100_Means'!$B89 -> 101.65 | G89: ='400_Means'!$B89 -> 99.055 | H89: ='900_Means'!$B89 -> 101.1311111 | I89: ='1600_Means'!$B89 -> 100.26625 | L89: 100.0755556 | M89: 23
A90: 89 | B90: ='2_Means'!$B90 -> 118 | C90: ='4_Means'!$B90 -> 103.25 | D90: ='16_Means'!$B90 -> 101.4375 | E90: ='25_Means'!$B90 -> 94.72 | F90: ='100_Means'!$B90 -> 102.03 | G90: ='400_Means'!$B90 -> 101.075 | H90: ='900_Means'!$B90 -> 100.4466667 | I90: ='1600_Means'!$B90 -> 99.94875 | L90: 100.3115556 | M90: 14
A91: 90 | B91: ='2_Means'!$B91 -> 99 | C91: ='4_Means'!$B91 -> 90.5 | D91: ='16_Means'!$B91 -> 100.25 | E91: ='25_Means'!$B91 -> 101.4 | F91: ='100_Means'!$B91 -> 98.48 | G91: ='400_Means'!$B91 -> 100.115 | H91: ='900_Means'!$B91 -> 100.47 | I91: ='1600_Means'!$B91 -> 99.085 | L91: 100.5475556 | M91: 15
A92: 91 | B92: ='2_Means'!$B92 -> 112 | C92: ='4_Means'!$B92 -> 96.5 | D92: ='16_Means'!$B92 -> 99.0625 | E92: ='25_Means'!$B92 -> 104.28 | F92: ='100_Means'!$B92 -> 98.34 | G92: ='400_Means'!$B92 -> 100.4275 | H92: ='900_Means'!$B92 -> 100.2188889 | I92: ='1600_Means'!$B92 -> 100.14375 | L92: 100.7835556 | M92: 7
A93: 92 | B93: ='2_Means'!$B93 -> 102 | C93: ='4_Means'!$B93 -> 93.5 | D93: ='16_Means'!$B93 -> 103.25 | E93: ='25_Means'!$B93 -> 92.52 | F93: ='100_Means'!$B93 -> 98.42 | G93: ='400_Means'!$B93 -> 99.49 | H93: ='900_Means'!$B93 -> 100.2188889 | I93: ='1600_Means'!$B93 -> 100.051875 | L93: 101.0195556 | M93: 6
A94: 93 | B94: ='2_Means'!$B94 -> 105 | C94: ='4_Means'!$B94 -> 93 | D94: ='16_Means'!$B94 -> 105.9375 | E94: ='25_Means'!$B94 -> 95.76 | F94: ='100_Means'!$B94 -> 98.9 | G94: ='400_Means'!$B94 -> 98.275 | H94: ='900_Means'!$B94 -> 100.0711111 | I94: ='1600_Means'!$B94 -> 99.978125 | L94: 기타 | M94: 3
A95: 94 | B95: ='2_Means'!$B95 -> 90.5 | C95: ='4_Means'!$B95 -> 95.25 | D95: ='16_Means'!$B95 -> 103 | E95: ='25_Means'!$B95 -> 105.4 | F95: ='100_Means'!$B95 -> 101.59 | G95: ='400_Means'!$B95 -> 98.945 | H95: ='900_Means'!$B95 -> 100.9444444 | I95: ='1600_Means'!$B95 -> 100.21375
A96: 95 | B96: ='2_Means'!$B96 -> 78 | C96: ='4_Means'!$B96 -> 115 | D96: ='16_Means'!$B96 -> 96.125 | E96: ='25_Means'!$B96 -> 92.28 | F96: ='100_Means'!$B96 -> 99.11 | G96: ='400_Means'!$B96 -> 101.13 | H96: ='900_Means'!$B96 -> 100.7755556 | I96: ='1600_Means'!$B96 -> 100.523125 | L96: 계급 | M96: 빈도수
A97: 96 | B97: ='2_Means'!$B97 -> 103.5 | C97: ='4_Means'!$B97 -> 93.25 | D97: ='16_Means'!$B97 -> 97.8125 | E97: ='25_Means'!$B97 -> 95.44 | F97: ='100_Means'!$B97 -> 99.58 | G97: ='400_Means'!$B97 -> 99.7625 | H97: ='900_Means'!$B97 -> 98.96444444 | I97: ='1600_Means'!$B97 -> 99.429375 | L97: 99.053125 | M97: 1
A98: 97 | B98: ='2_Means'!$B98 -> 99 | C98: ='4_Means'!$B98 -> 93 | D98: ='16_Means'!$B98 -> 106.8125 | E98: ='25_Means'!$B98 -> 101.72 | F98: ='100_Means'!$B98 -> 99.72 | G98: ='400_Means'!$B98 -> 99.4 | H98: ='900_Means'!$B98 -> 99.89444444 | I98: ='1600_Means'!$B98 -> 99.809375 | L98: 99.26075 | M98: 3
A99: 98 | B99: ='2_Means'!$B99 -> 98 | C99: ='4_Means'!$B99 -> 98 | D99: ='16_Means'!$B99 -> 99.4375 | E99: ='25_Means'!$B99 -> 99.12 | F99: ='100_Means'!$B99 -> 102.06 | G99: ='400_Means'!$B99 -> 100.8775 | H99: ='900_Means'!$B99 -> 99.87666667 | I99: ='1600_Means'!$B99 -> 100.319375 | L99: 99.468375 | M99: 3
A100: 99 | B100: ='2_Means'!$B100 -> 101 | C100: ='4_Means'!$B100 -> 99.25 | D100: ='16_Means'!$B100 -> 103.375 | E100: ='25_Means'!$B100 -> 99.72 | F100: ='100_Means'!$B100 -> 99.57 | G100: ='400_Means'!$B100 -> 99.4575 | H100: ='900_Means'!$B100 -> 99.96555556 | I100: ='1600_Means'!$B100 -> 100.16375 | L100: 99.676 | M100: 10
A101: 100 | B101: ='2_Means'!$B101 -> 104.5 | C101: ='4_Means'!$B101 -> 89.5 | D101: ='16_Means'!$B101 -> 102.0625 | E101: ='25_Means'!$B101 -> 100.56 | F101: ='100_Means'!$B101 -> 101.63 | G101: ='400_Means'!$B101 -> 100.4125 | H101: ='900_Means'!$B101 -> 99.85777778 | I101: ='1600_Means'!$B101 -> 99.59 | L101: 99.883625 | M101: 14
L102: 100.09125 | M102: 22
L103: 100.298875 | M103: 22
L104: 100.5065 | M104: 11
L105: 100.714125 | M105: 10
L106: 100.92175 | M106: 3
L107: 기타 | M107: 1
